Workbook

Sheet ABRIL 2022
A1: NO | B1: CEDULA | C1: NOMBRES APELLIDOS CONTRATISTA | D1: NO.OPS ABRIL 2022 | E1: OBJETO DEL CONTRATO | F1: NO.OPS ABRIL 2022 | G1: FECHA DE INICIO | H1: FECHA DE TERMINACION | I1: VALOR CONTRATO SUSCRITO ABRIL 2022 | J1: FECHA SECOP | K1: LINK SECOP
A2: 1 | B2: 1041898122 | C2: MELIZA MORALES PALLARES | D2: 1652-2022- | E2: AUXILIAR ADMINISTRATIVO | F2: 1652-2022- | G2: 01 de Abril de 2022 | H2: 30 de Abril de 2022 | I2: 2000000 | J2: 2022-05-13 | K2: Detalle del proceso: 1652-2022- (contratos.gov.co)
A3: =+A2+1 -> 2 | B3: 32825462 | C3: ANAIS DE JESUS RODRIGUEZ DE LAS AGUAS | D3: 1653-2022- | E3: PERSONAL DE ASEO Y LIMPIEZA | F3: 1653-2022- | G3: 01 de Abril de 2022 | H3: 30 de Abril de 2022 | I3: 1400000 | J3: 2022-05-13 | K3: Detalle del proceso: 1653-2022- (contratos.gov.co)
A4: 2 | B4: 1001965931 | C4: ANDREA CAROLINA PEREZ JIMENEZ | D4: 1654-2022- | E4: AUXILIAR ADMINISTRATIVO EN PROCESOS AMBIENTALES | F4: 1654-2022- | G4: 01 de Abril de 2022 | H4: 30 de Abril de 2022 | I4: 1500000 | J4: 2022-05-13 | K4: Detalle del proceso: 1654-2022- (contratos.gov.co)
A5: =+A4+1 -> 3 | B5: 8639410 | C5: CESAR OCTAVIO VARGAS DURAN | D5: 1655-2022- | E5: APOYO PROCESO AMBIENTAL | F5: 1655-2022- | G5: 01 de Abril de 2022 | H5: 30 de Abril de 2022 | I5: 2000000 | J5: 2022-05-13 | K5: Detalle del proceso: 1655-2022- (contratos.gov.co)
A6: 3 | B6: 72236961 | C6: EDUAR ENRIQUE SANCHEZ URZOLA | D6: 1656-2022- | E6: MENSAJERO | F6: 1656-2022- | G6: 01 de Abril de 2022 | H6: 30 de Abril de 2022 | I6: 1500000 | J6: 2022-05-13 | K6: Detalle del proceso: 1656-2022- (contratos.gov.co)
A7: =+A6+1 -> 4 | B7: 72328953 | C7: FRANCISCO ALCIDES CARRANZA MENDOZA | D7: 1657-2022- | E7: AUXILIAR RECURSOS FISICOS | F7: 1657-2022- | G7: 01 de Abril de 2022 | H7: 30 de Abril de 2022 | I7: 2000000 | J7: 2022-05-13 | K7: Detalle del proceso: 1657-2022- (contratos.gov.co)
A8: 4 | B8: 72290761 | C8: JORGE LUIS CASTRO HERNANDEZ | D8: 1658-2022- | E8: INGENIERO CIVIL- RECURSOS FISICOS | F8: 1658-2022- | G8: 01 de Abril de 2022 | H8: 30 de Abril de 2022 | I8: 5000000 | J8: 2022-05-13 | K8: Detalle del proceso: 1658-2022- (contratos.gov.co)
A9: =+A8+1 -> 5 | B9: 1044801313 | C9: MARTHA KARENA PACHECO LASCANO | D9: 1659-2022- | E9: AUXILIAR ADMINISTRATIVO VENTANILLA UNICA | F9: 1659-2022- | G9: 01 de Abril de 2022 | H9: 30 de Abril de 2022 | I9: 2000000 | J9: 2022-05-13 | K9: Detalle del proceso: 1659-2022- (contratos.gov.co)
A10: 5 | B10: 8680252 | C10: ALVARO SAMUEL PULGAR LEMUS | D10: 1660-2022- | E10: ORIENTADOR | F10: 1660-2022- | G10: 01 de Abril de 2022 | H10: 30 de Abril de 2022 | I10: 1270000 | J10: 2022-05-13 | K10: Detalle del proceso: 1660-2022- (contratos.gov.co)
A11: =+A10+1 -> 6 | B11: 1010179685 | C11: NAYIVI OSPINA ARROYAVE | D11: 1661-2022- | E11: PROFESIONAL DE APOYO A LA GESTION AMBIENTAL | F11: 1661-2022- | G11: 01 de Abril de 2022 | H11: 30 de Abril de 2022 | I11: 3000000 | J11: 2022-05-13 | K11: Detalle del proceso: 1661-2022- (contratos.gov.co)
A12: 6 | B12: 72220231 | C12: SERGIO IVAN KUNCEL MAURY | D12: 1662-2022- | E12: ASESOR GERENCIA | F12: 1662-2022- | G12: 01 de Abril de 2022 | H12: 30 de Abril de 2022 | I12: 4000000 | J12: 2022-05-13 | K12: Detalle del proceso: 1662-2022- (contratos.gov.co)
A13: =+A12+1 -> 7 | B13: 8775091 | C13: MANGLIO EMERSON BOVEA OROZCO | D13: 1663-2022- | E13: COMUNICADOR SOCIAL | F13: 1663-2022- | G13: 01 de Abril de 2022 | H13: 30 de Abril de 2022 | I13: 2500000 | J13: 2022-05-13 | K13: Detalle del proceso: 1663-2022- (contratos.gov.co)
A14: 7 | B14: 1129511022 | C14: JAINNY MOLINARES BARRIOS | D14: 1664-2022- | E14: ORIENTADOR | F14: 1664-2022- | G14: 01 de Abril de 2022 | H14: 30 de Abril de 2022 | I14: 1400000 | J14: 2022-05-13 | K14: Detalle del proceso: 1664-2022- (contratos.gov.co)
A15: =+A14+1 -> 8 | B15: 8762665 | C15: ELIECER DE JESUS CALLE QUINTERO | D15: 1666-2022- | E15: AUXILIAR DE ALMACEN | F15: 1666-2022- | G15: 01 de Abril de 2022 | H15: 30 de Abril de 2022 | I15: 1500000 | J15: 2022-05-13 | K15: Detalle del proceso: 1666-2022- (contratos.gov.co)
A16: 8 | B16: 72098690 | C16: JAVIER ENRIQUE BARANDICA ACENDRA | D16: 1667-2022- | E16: TECNICO DE ALMACEN | F16: 1667-2022- | G16: 01 de Abril de 2022 | H16: 30 de Abril de 2022 | I16: 1500000 | J16: 2022-05-13 | K16: Detalle del proceso: 1667-2022- (contratos.gov.co)
A17: =+A16+1 -> 9 | B17: 8632155 | C17: JOSE FRANCISCO MENDOZA MENDOZA | D17: 1668-2022- | E17: AUXILIAR DE ALMACEN | F17: 1668-2022- | G17: 01 de Abril de 2022 | H17: 30 de Abril de 2022 | I17: 1500000 | J17: 2022-05-13 | K17: Detalle del proceso: 1668-2022- (contratos.gov.co)
A18: 9 | B18: 22562553 | C18: SILVANA BEATRIZ GONZALEZ MORENO | D18: 1669-2022- | E18: TECNICO ALMACEN | F18: 1669-2022- | G18: 01 de Abril de 2022 | H18: 30 de Abril de 2022 | I18: 1500000 | J18: 2022-05-13 | K18: Detalle del proceso: 1669-2022- (contratos.gov.co)
A19: =+A18+1 -> 10 | B19: 32813366 | C19: ANA GONZALEZ ZAMBRANO | D19: 1671-2022- | E19: AUXILIAR DE ARCHIVO | F19: 1671-2022- | G19: 01 de Abril de 2022 | H19: 30 de Abril de 2022 | I19: 1400000 | J19: 2022-05-13 | K19: Detalle del proceso: 1671-2022- (contratos.gov.co)
A20: 10 | B20: 8511545 | C20: ANTONIO MARIA ARAGON VALENCIA | D20: 1672-2022- | E20: AUXILIAR DE ARCHIVO | F20: 1672-2022- | G20: 01 de Abril de 2022 | H20: 30 de Abril de 2022 | I20: 1400000 | J20: 2022-05-13 | K20: Detalle del proceso: 1672-2022- (contratos.gov.co)
A21: =+A20+1 -> 11 | B21: 45496113 | C21: BEATRIZ ELENA JIMENO CARDENAS | D21: 1673-2022- | E21: AUXILIAR DE ARCHIVO | F21: 1673-2022- | G21: 01 de Abril de 2022 | H21: 30 de Abril de 2022 | I21: 1400000 | J21: 2022-05-13 | K21: Detalle del proceso: 1673-2022- (contratos.gov.co)
A22: 11 | B22: 1046815796 | C22: CARINA ANDREA VILORIA DE LA HOZ | D22: 1674-2022- | E22: AUXILIAR DE ARCHIVO | F22: 1674-2022- | G22: 01 de Abril de 2022 | H22: 30 de Abril de 2022 | I22: 1400000 | J22: 2022-05-13 | K22: Detalle del proceso: 1674-2022- (contratos.gov.co)
A23: =+A22+1 -> 12 | B23: 22458695 | C23: DIANA DE JESUS ORTEGA CONSUEGRA | D23: 1675-2022- | E23: AUXILIAR DE ARCHIVO | F23: 1675-2022- | G23: 01 de Abril de 2022 | H23: 30 de Abril de 2022 | I23: 1400000 | J23: 2022-05-13 | K23: Detalle del proceso: 1675-2022- (contratos.gov.co)
A24: 12 | B24: 1007045398 | C24: ELIEZER VEGA ARAGON | D24: 1676-2022- | E24: AUXILIAR DE ARCHIVO | F24: 1676-2022- | G24: 01 de Abril de 2022 | H24: 30 de Abril de 2022 | I24: 1400000 | J24: 2022-05-13 | K24: Detalle del proceso: 1676-2022- (contratos.gov.co)
A25: =+A24+1 -> 13 | B25: 1043604286 | C25: EUCARIS MARIA ARRIETA DE LA HOZ | D25: 1677-2022- | E25: AUXILIAR DE ARCHIVO | F25: 1677-2022- | G25: 01 de Abril de 2022 | H25: 30 de Abril de 2022 | I25: 1400000 | J25: 2022-05-13 | K25: Detalle del proceso: 1677-2022- (contratos.gov.co)
A26: 13 | B26: 8756266 | C26: GEOVANNY ESCORCIA JIMENEZ | D26: 1678-2022- | E26: AUXILIAR DE ARCHIVO | F26: 1678-2022- | G26: 01 de Abril de 2022 | H26: 30 de Abril de 2022 | I26: 1400000 | J26: 2022-05-13 | K26: Detalle del proceso: 1678-2022- (contratos.gov.co)
A27: =+A26+1 -> 14 | B27: 1043002864 | C27: JAIRO BARRIOS AVILA | D27: 1679-2022- | E27: AUXILIAR DE ARCHIVO | F27: 1679-2022- | G27: 01 de Abril de 2022 | H27: 30 de Abril de 2022 | I27: 1400000 | J27: 2022-05-16 | K27: Detalle del proceso: 1679-2022- (contratos.gov.co)
A28: 14 | B28: 1041890825 | C28: JHOSIMAR GUETTE CANTILLO | D28: 1680-2022- | E28: GESTION DOCUMENTAL TALENTO HUMANO | F28: 1680-2022- | G28: 01 de Abril de 2022 | H28: 30 de Abril de 2022 | I28: 1400000 | J28: 2022-05-17 | K28: Detalle del proceso: 1680-2022- (contratos.gov.co)
A29: =+A28+1 -> 15 | B29: 45740690 | C29: MARELYS DEL CARMEN RAMIREZ | D29: 1681-2022- | E29: AUXILIAR DE ARCHIVO | F29: 1681-2022- | G29: 01 de Abril de 2022 | H29: 30 de Abril de 2022 | I29: 1400000 | J29: 2022-05-17 | K29: Detalle del proceso: 1681-2022- (contratos.gov.co)
A30: 15 | B30: 32817343 | C30: MARIELA ESTER NIEBLES FREILE | D30: 1682-2022- | E30: AUXILIAR DE ARCHIVO | F30: 1682-2022- | G30: 01 de Abril de 2022 | H30: 30 de Abril de 2022 | I30: 1400000 | J30: 2022-05-17 | K30: Detalle del proceso: 1682-2022- (contratos.gov.co)
A31: =+A30+1 -> 16 | B31: 1001878251 | C31: MAYRA ALEJANDRA ESCORCIA DE LA HOZ | D31: 1683-2022- | E31: AUXILIAR DE ARCHIVO | F31: 1683-2022- | G31: 01 de Abril de 2022 | H31: 30 de Abril de 2022 | I31: 1400000 | J31: 2022-05-17 | K31: Detalle del proceso: 1683-2022- (contratos.gov.co)
A32: 16 | B32: 32862644 | C32: NURYS GARCIA DELGADO | D32: 1684-2022- | E32: AUXILIAR DE ARCHIVO | F32: 1684-2022- | G32: 01 de Abril de 2022 | H32: 30 de Abril de 2022 | I32: 1400000 | J32: 2022-05-17 | K32: Detalle del proceso: 1684-2022- (contratos.gov.co)
A33: =+A32+1 -> 17 | B33: 1043605412 | C33: SANDRA MILENA REALES ARIZA | D33: 1685-2022- | E33: AUXILIAR DE ARCHIVO | F33: 1685-2022- | G33: 01 de Abril de 2022 | H33: 30 de Abril de 2022 | I33: 1400000 | J33: 2022-05-17 | K33: Detalle del proceso: 1685-2022- (contratos.gov.co)
A34: 17 | B34: 22664852 | C34: VILMAIRA JUDITH BOLAÑO VALENCIA | D34: 1686-2022- | E34: GESTION DOCUMENTAL TALENTO HUMANO | F34: 1686-2022- | G34: 01 de Abril de 2022 | H34: 30 de Abril de 2022 | I34: 1400000 | J34: 2022-05-17 | K34: Detalle del proceso: 1686-2022- (contratos.gov.co)
A35: =+A34+1 -> 18 | B35: 1041890216 | C35: YAKELIN MARIA BARRIOS GARCIA | D35: 1687-2022- | E35: PERSONAL DE ASEO Y LIMPIEZA | F35: 1687-2022- | G35: 01 de Abril de 2022 | H35: 30 de Abril de 2022 | I35: 1400000 | J35: 2022-05-17 | K35: Detalle del proceso: 1687-2022- (contratos.gov.co)
A36: 18 | B36: 1042451687 | C36: ADRIANA SOFIA PEREZ CERVANTES | D36: 1689-2022- | E36: AGENTE CALL CENTER | F36: 1689-2022- | G36: 01 de Abril de 2022 | H36: 30 de Abril de 2022 | I36: 1400000 | J36: 2022-05-17 | K36: Detalle del proceso: 1689-2022- (contratos.gov.co)
A37: =+A36+1 -> 19 | B37: 55246887 | C37: CLAUDIA PATRICIA FONTALVO YEPES | D37: 1690-2022- | E37: AGENTE CALL CENTER | F37: 1690-2022- | G37: 01 de Abril de 2022 | H37: 30 de Abril de 2022 | I37: 1400000 | J37: 2022-05-17 | K37: Detalle del proceso: 1690-2022- (contratos.gov.co)
A38: 19 | B38: 1083693179 | C38: DAYMAR ANDREINA MATUTE VILLANUEVA | D38: 1691-2022- | E38: AGENTE CALL CENTER | F38: 1691-2022- | G38: 01 de Abril de 2022 | H38: 30 de Abril de 2022 | I38: 1400000 | J38: 2022-05-17 | K38: Detalle del proceso: 1691-2022- (contratos.gov.co)
A39: =+A38+1 -> 20 | B39: 55305321 | C39: GELMIS SARAY MARTINEZ DIPPE | D39: 1692-2022- | E39: AGENTE CALL CENTER | F39: 1692-2022- | G39: 01 de Abril de 2022 | H39: 30 de Abril de 2022 | I39: 1400000 | J39: 2022-05-17 | K39: Detalle del proceso: 1692-2022- (contratos.gov.co)
A40: 20 | B40: 1143436805 | C40: GINNA ALEJANDRA SABOGAL PRIETO | D40: 1693-2022- | E40: AGENTE CALL CENTER | F40: 1693-2022- | G40: 01 de Abril de 2022 | H40: 30 de Abril de 2022 | I40: 1400000 | J40: 2022-05-17 | K40: Detalle del proceso: 1693-2022- (contratos.gov.co)
A41: =+A40+1 -> 21 | B41: 1235240838 | C41: JHOANA DEL CARMEN SANCHEZ ORDOÑEZ | D41: 1694-2022- | E41: AGENTE CALL CENTER | F41: 1694-2022- | G41: 01 de Abril de 2022 | H41: 30 de Abril de 2022 | I41: 1400000 | J41: 2022-05-17 | K41: Detalle del proceso: 1694-2022- (contratos.gov.co)
A42: 21 | B42: 1001799547 | C42: LEIDYS JOHANA ARIZA PACHECO | D42: 1695-2022- | E42: AGENTE CALL CENTER | F42: 1695-2022- | G42: 01 de Abril de 2022 | H42: 30 de Abril de 2022 | I42: 1400000 | J42: 2022-05-17 | K42: Detalle del proceso: 1695-2022- (contratos.gov.co)
A43: =+A42+1 -> 22 | B43: 1002157167 | C43: LEODALIZ SALGADO GUERRERO | D43: 1696-2022- | E43: AGENTE CALL CENTER | F43: 1696-2022- | G43: 01 de Abril de 2022 | H43: 30 de Abril de 2022 | I43: 1400000 | J43: 2022-05-17 | K43: Detalle del proceso: 1696-2022- (contratos.gov.co)
A44: 22 | B44: 1042436897 | C44: LIZETH PATRICIA BLANQUICETT FERRER | D44: 1697-2022- | E44: AGENTE CALL CENTER | F44: 1697-2022- | G44: 01 de Abril de 2022 | H44: 30 de Abril de 2022 | I44: 1400000 | J44: 2022-05-17 | K44: Detalle del proceso: 1697-2022- (contratos.gov.co)
A45: =+A44+1 -> 23 | B45: 1043020607 | C45: LUCIA MARGARITA GALVAN BARRIOS | D45: 1698-2022- | E45: AGENTE CALL CENTER | F45: 1698-2022- | G45: 01 de Abril de 2022 | H45: 30 de Abril de 2022 | I45: 1400000 | J45: 2022-05-17 | K45: Detalle del proceso: 1698-2022- (contratos.gov.co)
A46: 23 | B46: 1042440221 | C46: MARIA DEL PILAR DE LA HOZ DE LA HOZ | D46: 1699-2022- | E46: AGENTE CALL CENTER | F46: 1699-2022- | G46: 01 de Abril de 2022 | H46: 30 de Abril de 2022 | I46: 1400000 | J46: 2022-05-17 | K46: Detalle del proceso: 1699-2022- (contratos.gov.co)
A47: =+A46+1 -> 24 | B47: 72043527 | C47: MARIANO DE JESUS BARRIOS ELLES | D47: 1700-2022- | E47: LIDER CALL CENTER | F47: 1700-2022- | G47: 01 de Abril de 2022 | H47: 30 de Abril de 2022 | I47: 2500000 | J47: 2022-05-17 | K47: Detalle del proceso: 1700-2022- (contratos.gov.co)
A48: 24 | B48: 1042439971 | C48: ROGER RAFAEL RAMBAO NIEBLES | D48: 1701-2022- | E48: AGENTE CALL CENTER | F48: 1701-2022- | G48: 01 de Abril de 2022 | H48: 30 de Abril de 2022 | I48: 1400000 | J48: 2022-05-17 | K48: Detalle del proceso: 1701-2022- (contratos.gov.co)
A49: =+A48+1 -> 25 | B49: 22613175 | C49: RUBIELA ISABEL CARDENAS ESTRADA | D49: 1702-2022- | E49: AGENTE CALL CENTER | F49: 1702-2022- | G49: 01 de Abril de 2022 | H49: 30 de Abril de 2022 | I49: 1400000 | J49: 2022-05-17 | K49: Detalle del proceso: 1702-2022- (contratos.gov.co)
A50: 25 | B50: 39142741 | C50: SANDRA MILENA ARCON PEREZ | D50: 1703-2022- | E50: AGENTE CALL CENTER | F50: 1703-2022- | G50: 01 de Abril de 2022 | H50: 30 de Abril de 2022 | I50: 1400000 | J50: 2022-05-17 | K50: Detalle del proceso: 1703-2022- (contratos.gov.co)
A51: =+A50+1 -> 26 | B51: 33309749 | C51: MELVIS PALENCIA SOLIS | D51: 1704-2022- | E51: AGENTE CALL CENTER | F51: 1704-2022- | G51: 01 de Abril de 2022 | H51: 30 de Abril de 2022 | I51: 1400000 | J51: 2022-05-17 | K51: Detalle del proceso: 1704-2022- (contratos.gov.co)
A52: 26 | B52: 92260323 | C52: ADOLFO DAVID TAPIA ANAYA | D52: 1706-2022- | E52: ENFERMERA JEFE DE URGENCIAS | F52: 1706-2022- | G52: 01 de Abril de 2022 | H52: 30 de Abril de 2022 | I52: 2280000 | J52: 2022-05-17 | K52: Detalle del proceso: 1706-2022- (contratos.gov.co)
A53: =+A52+1 -> 27 | B53: 1042428171 | C53: ALEX ENRIQUE VILLARREAL IBAÑEZ | D53: 1707-2022- | E53: ODONTOLOGO | F53: 1707-2022- | G53: 01 de Abril de 2022 | H53: 30 de Abril de 2022 | I53: 1900000 | J53: 2022-05-17 | K53: Detalle del proceso: 1707-2022- (contratos.gov.co)
A54: 27 | B54: 22523223 | C54: ALEXANDRA ESTHER MOLINA PEREZ | D54: 1708-2022- | E54: PERSONAL DE ASEO Y LIMPIEZA URGENCIAS | F54: 1708-2022- | G54: 01 de Abril de 2022 | H54: 30 de Abril de 2022 | I54: 1400000 | J54: 2022-05-17 | K54: Detalle del proceso: 1708-2022- (contratos.gov.co)
A55: =+A54+1 -> 28 | B55: 72000601 | C55: ALEXIS JAVIER SUAREZ CABALLERO | D55: 1709-2022- | E55: AUXILIAR FACTURACION | F55: 1709-2022- | G55: 01 de Abril de 2022 | H55: 30 de Abril de 2022 | I55: 1400000 | J55: 2022-05-17 | K55: Detalle del proceso: 1709-2022- (contratos.gov.co)
A56: 28 | B56: 8697543 | C56: ALVARO ARENAS GONZALEZ | D56: 1710-2022- | E56: MEDICO DE RUTA INTEGRAL MATERNO PERINATAL | F56: 1710-2022- | G56: 01 de Abril de 2022 | H56: 30 de Abril de 2022 | I56: 5088000 | J56: 2022-05-17 | K56: Detalle del proceso: 1710-2022- (contratos.gov.co)
A57: =+A56+1 -> 29 | B57: 1042442926 | C57: ANDRES RAUL ESCORCIA VALDERRAMA | D57: 1711-2022- | E57: AUXILIAR FACTURACION | F57: 1711-2022- | G57: 01 de Abril de 2022 | H57: 30 de Abril de 2022 | I57: 1400000 | J57: 2022-05-17 | K57: Detalle del proceso: 1711-2022- (contratos.gov.co)
A58: 29 | B58: 32570971 | C58: ARNIDIS JIMENEZ REALES | D58: 1712-2022- | E58: AUXILIAR DE ENFERMERIA URGENCIAS | F58: 1712-2022- | G58: 01 de Abril de 2022 | H58: 30 de Abril de 2022 | I58: 1653600 | J58: 2022-05-17 | K58: Detalle del proceso: 1712-2022- (contratos.gov.co)
A59: =+A58+1 -> 30 | B59: 32712485 | C59: CASILDA LARA SOLANO | D59: 1713-2022- | E59: MEDICO DE PROMOCIÓN Y MANTENIMIENTO DE LA SALUD | F59: 1713-2022- | G59: 01 de Abril de 2022 | H59: 30 de Abril de 2022 | I59: 4240000 | J59: 2022-05-17 | K59: Detalle del proceso: 1713-2022- (contratos.gov.co)
A60: 30 | B60: 1042351989 | C60: DAIVELYS BURGOS RUIZ | D60: 1714-2022- | E60: AUXILIAR DE ENFERMERIA URGENCIAS | F60: 1714-2022- | G60: 01 de Abril de 2022 | H60: 30 de Abril de 2022 | I60: 1653600 | J60: 2022-05-17 | K60: Detalle del proceso: 1714-2022- (contratos.gov.co)
A61: =+A60+1 -> 31 | B61: 1042442558 | C61: DANISA PAOLA BARRIOS DE ALBA | D61: 1715-2022- | E61: NUTRICIONISTA | F61: 1715-2022- | G61: 01 de Abril de 2022 | H61: 30 de Abril de 2022 | I61: 2000000 | J61: 2022-05-17 | K61: Detalle del proceso: 1715-2022- (contratos.gov.co)
A62: 31 | B62: 1045717077 | C62: DAYANA PAOLA VIDAL CEPEDA | D62: 1716-2022- | E62: MEDICO RIPMS Y CONSULTA EXTERNA | F62: 1716-2022- | G62: 01 de Abril de 2022 | H62: 30 de Abril de 2022 | I62: 2120000 | J62: 2022-05-17 | K62: Detalle del proceso: 1716-2022- (contratos.gov.co)
A63: =+A62+1 -> 32 | B63: 32851260 | C63: DENISE DEL CARMEN POLO AVILA | D63: 1717-2022- | E63: AUXILIAR DE ENFERMERIA URGENCIAS | F63: 1717-2022- | G63: 01 de Abril de 2022 | H63: 30 de Abril de 2022 | I63: 1653600 | J63: 2022-05-17 | K63: Detalle del proceso: 1717-2022- (contratos.gov.co)
A64: 32 | B64: 1082405551 | C64: DESIRETH ESTRADA FERNANDEZ | D64: 1718-2022- | E64: ENFERMERA JEFE DE PROMOCIÓN Y MANTENIMIENTO DE LA SALUD | F64: 1718-2022- | G64: 01 de Abril de 2022 | H64: 30 de Abril de 2022 | I64: 2000000 | J64: 2022-05-17 | K64: Detalle del proceso: 1718-2022- (contratos.gov.co)
A65: =+A64+1 -> 33 | B65: 32818082 | C65: DIVINA LUZ NIETO ZAMBRANO | D65: 1719-2022- | E65: PERSONAL DE ASEO Y LIMPIEZA URGENCIAS | F65: 1719-2022- | G65: 01 de Abril de 2022 | H65: 30 de Abril de 2022 | I65: 1400000 | J65: 2022-05-17 | K65: Detalle del proceso: 1719-2022- (contratos.gov.co)
A66: 33 | B66: 72432974 | C66: EDER JOSE CASTRO PINTO | D66: 1720-2022- | E66: ORIENTADOR | F66: 1720-2022- | G66: 01 de Abril de 2022 | H66: 30 de Abril de 2022 | I66: 1400000 | J66: 2022-05-17 | K66: Detalle del proceso: 1720-2022- (contratos.gov.co)
A67: =+A66+1 -> 34 | B67: 1043027335 | C67: EIDETH SOFIA CASTRO ZAMBRANO | D67: 1721-2022- | E67: MEDICO DE URGENCIAS | F67: 1721-2022- | G67: 01 de Abril de 2022 | H67: 30 de Abril de 2022 | I67: 3072000 | J67: 2022-05-17 | K67: Detalle del proceso: 1721-2022- (contratos.gov.co)
A68: 34 | B68: 22570149 | C68: ELENA BAENA PEÑA | D68: 1722-2022- | E68: AUXILIAR FACTURACION | F68: 1722-2022- | G68: 01 de Abril de 2022 | H68: 30 de Abril de 2022 | I68: 1400000 | J68: 2022-05-17 | K68: Detalle del proceso: 1722-2022- (contratos.gov.co)
A69: =+A68+1 -> 35 | B69: 22693401 | C69: EMILIA ANTONIA BARCELO DE PARRA | D69: 1723-2022- | E69: PERSONAL DE ASEO Y LIMPIEZA URGENCIAS | F69: 1723-2022- | G69: 01 de Abril de 2022 | H69: 30 de Abril de 2022 | I69: 1400000 | J69: 2022-05-17 | K69: Detalle del proceso: 1723-2022- (contratos.gov.co)
A70: 35 | B70: 8718276 | C70: ENRIQUE PACHECO PACHECO | D70: 1724-2022- | E70: MEDICO DE URGENCIAS | F70: 1724-2022- | G70: 01 de Abril de 2022 | H70: 30 de Abril de 2022 | I70: 3072000 | J70: 2022-05-17 | K70: Detalle del proceso: 1724-2022- (contratos.gov.co)
A71: =+A70+1 -> 36 | B71: 32821813 | C71: ESPERANZA SOFIA OROZCO MORENO | D71: 1725-2022- | E71: AUXILIAR DE ENFERMERIA URGENCIAS | F71: 1725-2022- | G71: 01 de Abril de 2022 | H71: 30 de Abril de 2022 | I71: 1653600 | J71: 2022-05-17 | K71: Detalle del proceso: 1725-2022- (contratos.gov.co)
A72: 36 | B72: 8788794 | C72: FRAICER JOHANNES CHARRIS RUA | D72: 1726-2022- | E72: AUXILIAR FACTURACION | F72: 1726-2022- | G72: 01 de Abril de 2022 | H72: 30 de Abril de 2022 | I72: 1400000 | J72: 2022-05-17 | K72: Detalle del proceso: 1726-2022- (contratos.gov.co)
A73: =+A72+1 -> 37 | B73: 8634413 | C73: GIL ANTONIO BERDUGO NOVA | D73: 1727-2022- | E73: AUXILIAR DE ENFERMERIA URGENCIAS | F73: 1727-2022- | G73: 01 de Abril de 2022 | H73: 30 de Abril de 2022 | I73: 1653600 | J73: 2022-05-17 | K73: Detalle del proceso: 1727-2022- (contratos.gov.co)
A74: 37 | B74: 49555306 | C74: GLADYS DIAZ MARIN | D74: 1728-2022- | E74: AUXILIAR FACTURACION | F74: 1728-2022- | G74: 01 de Abril de 2022 | H74: 30 de Abril de 2022 | I74: 1400000 | J74: 2022-05-17 | K74: Detalle del proceso: 1728-2022- (contratos.gov.co)
A75: =+A74+1 -> 38 | B75: 1064976268 | C75: GUSTAVO ADOLFO ARAUJO GALVAN | D75: 1729-2022- | E75: MEDICO DE URGENCIAS | F75: 1729-2022- | G75: 01 de Abril de 2022 | H75: 30 de Abril de 2022 | I75: 6144000 | J75: 2022-05-17 | K75: Detalle del proceso: 1729-2022- (contratos.gov.co)
A76: 38 | B76: 8769094 | C76: HABIT DIAZ ABDO | D76: 1730-2022- | E76: CONDUCTOR DE AMBULANCIA | F76: 1730-2022- | G76: 01 de Abril de 2022 | H76: 30 de Abril de 2022 | I76: 2000000 | J76: 2022-05-17 | K76: Detalle del proceso: 1730-2022- (contratos.gov.co)
A77: =+A76+1 -> 39 | B77: 72434383 | C77: HUGO ORLANDO BARRAZA GARCIA | D77: 1731-2022- | E77: AUXILIAR FACTURACION | F77: 1731-2022- | G77: 01 de Abril de 2022 | H77: 30 de Abril de 2022 | I77: 1400000 | J77: 2022-05-17 | K77: Detalle del proceso: 1731-2022- (contratos.gov.co)
A78: 39 | B78: 32861543 | C78: INGRID NAVARRO CARRILLO | D78: 1732-2022- | E78: FISIOTERAPEUTA | F78: 1732-2022- | G78: 01 de Abril de 2022 | H78: 30 de Abril de 2022 | I78: 5800000 | J78: 2022-05-17 | K78: Detalle del proceso: 1732-2022- (contratos.gov.co)
A79: =+A78+1 -> 40 | B79: 32869709 | C79: JENECIS BARRERA MIRANDA | D79: 1733-2022- | E79: ENFERMERA JEFE DE RUTA INTEGRAL MATERNO PERINATAL | F79: 1733-2022- | G79: 01 de Abril de 2022 | H79: 30 de Abril de 2022 | I79: 2000000 | J79: 2022-05-17 | K79: Detalle del proceso: 1733-2022- (contratos.gov.co)
A80: 40 | B80: 1042444925 | C80: JESUS MORENO DE ALBA | D80: 1734-2022- | E80: AUXILIAR FACTURACION | F80: 1734-2022- | G80: 01 de Abril de 2022 | H80: 30 de Abril de 2022 | I80: 1400000 | J80: 2022-05-17 | K80: Detalle del proceso: 1734-2022- (contratos.gov.co)
A81: =+A80+1 -> 41 | B81: 44161544 | C81: JHOANA CATALINA SANDOVAL ESCORCIA | D81: 1735-2022- | E81: ENFERMERA JEFE DE URGENCIAS | F81: 1735-2022- | G81: 01 de Abril de 2022 | H81: 30 de Abril de 2022 | I81: 2280000 | J81: 2022-05-17 | K81: Detalle del proceso: 1735-2022- (contratos.gov.co)
A82: 41 | B82: 8776312 | C82: JORGE RIVERA MEZA | D82: 1736-2022- | E82: AUXILIAR RECURSOS FISICOS | F82: 1736-2022- | G82: 01 de Abril de 2022 | H82: 30 de Abril de 2022 | I82: 1400000 | J82: 2022-05-18 | K82: Detalle del proceso: 1736-2022- (contratos.gov.co)
A83: =+A82+1 -> 42 | B83: 1047346933 | C83: JOSE MENDOZA FONTALVO | D83: 1737-2022- | E83: AUXILIAR FACTURACION | F83: 1737-2022- | G83: 01 de Abril de 2022 | H83: 30 de Abril de 2022 | I83: 1400000 | J83: 2022-05-18 | K83: Detalle del proceso: 1737-2022- (contratos.gov.co)
A84: 42 | B84: 32810582 | C84: JOSEFINA CARO VITOLA | D84: 1738-2022- | E84: AUXILIAR DE ENFERMERIA URGENCIAS | F84: 1738-2022- | G84: 01 de Abril de 2022 | H84: 30 de Abril de 2022 | I84: 1653600 | J84: 2022-05-18 | K84: Detalle del proceso: 1738-2022- (contratos.gov.co)
A85: =+A84+1 -> 43 | B85: 8541048 | C85: JUAN SEBASTIAN OROZCO ARTETA | D85: 1739-2022- | E85: ENFERMERA JEFE DE PROMOCIÓN Y MANTENIMIENTO DE LA SALUD | F85: 1739-2022- | G85: 01 de Abril de 2022 | H85: 30 de Abril de 2022 | I85: 2280000 | J85: 2022-05-18 | K85: Detalle del proceso: 1739-2022- (contratos.gov.co)
A86: 43 | B86: 1043841968 | C86: KAREN DAYANA FONSECA MUÑOZ | D86: 1740-2022- | E86: MEDICO DE URGENCIAS | F86: 1740-2022- | G86: 01 de Abril de 2022 | H86: 30 de Abril de 2022 | I86: 3072000 | J86: 2022-05-18 | K86: Detalle del proceso: 1740-2022- (contratos.gov.co)
A87: =+A86+1 -> 44 | B87: 1045697885 | C87: LAURA ALANDETE CASTRO | D87: 1741-2022- | E87: MEDICO DE URGENCIAS | F87: 1741-2022- | G87: 01 de Abril de 2022 | H87: 30 de Abril de 2022 | I87: 3072000 | J87: 2022-05-18 | K87: Detalle del proceso: 1741-2022- (contratos.gov.co)
A88: 44 | B88: 1143233427 | C88: LAURA VANESSA ALGARIN MACIAS | D88: 1742-2022- | E88: AUXILIAR DE ENFERMERIA URGENCIAS | F88: 1742-2022- | G88: 01 de Abril de 2022 | H88: 30 de Abril de 2022 | I88: 1653600 | J88: 2022-05-18 | K88: Detalle del proceso: 1742-2022- (contratos.gov.co)
A89: =+A88+1 -> 45 | B89: 22615873 | C89: LICETH ESTHER LAVALLE MORENO | D89: 1743-2022- | E89: AUXILIAR DE ODONTOLOGIA | F89: 1743-2022- | G89: 01 de Abril de 2022 | H89: 30 de Abril de 2022 | I89: 1166000 | J89: 2022-05-18 | K89: Detalle del proceso: 1743-2022- (contratos.gov.co)
A90: 45 | B90: 57301265 | C90: LILA MARIA VILLA MERIÑO | D90: 1744-2022- | E90: PERSONAL DE ASEO Y LIMPIEZA URGENCIAS | F90: 1744-2022- | G90: 01 de Abril de 2022 | H90: 30 de Abril de 2022 | I90: 1400000 | J90: 2022-05-18 | K90: Detalle del proceso: 1744-2022- (contratos.gov.co)
A91: =+A90+1 -> 46 | B91: 8672260 | C91: LUIS MIGUEL REYES LANCE | D91: 1745-2022- | E91: ORIENTADOR | F91: 1745-2022- | G91: 01 de Abril de 2022 | H91: 30 de Abril de 2022 | I91: 1400000 | J91: 2022-05-18 | K91: Detalle del proceso: 1745-2022- (contratos.gov.co)
A92: 46 | B92: 32825666 | C92: LUZ ESTELA RUIZ SUAREZ | D92: 1746-2022- | E92: AUXILIAR DE ENFERMERIA RUTA MATERNO PERINATAL | F92: 1746-2022- | G92: 01 de Abril de 2022 | H92: 30 de Abril de 2022 | I92: 1300000 | J92: 2022-05-18 | K92: Detalle del proceso: 1746-2022- (contratos.gov.co)
A93: =+A92+1 -> 47 | B93: 1048279224 | C93: MAICOL LAURENS FABREGAS | D93: 1747-2022- | E93: ORIENTADOR | F93: 1747-2022- | G93: 01 de Abril de 2022 | H93: 30 de Abril de 2022 | I93: 1400000 | J93: 2022-05-18 | K93: Detalle del proceso: 1747-2022- (contratos.gov.co)
A94: 47 | B94: 22644933 | C94: MARGARITA PACHECO GUTIERREZ | D94: 1748-2022- | E94: HIGIENISTA ORAL | F94: 1748-2022- | G94: 01 de Abril de 2022 | H94: 30 de Abril de 2022 | I94: 2000000 | J94: 2022-05-18 | K94: Detalle del proceso: 1748-2022- (contratos.gov.co)
A95: =+A94+1 -> 48 | B95: 1043017563 | C95: MARIA ANGEL ALMANZA AHUMADA | D95: 1749-2022- | E95: MEDICO DE URGENCIAS | F95: 1749-2022- | G95: 01 de Abril de 2022 | H95: 30 de Abril de 2022 | I95: 6144000 | J95: 2022-05-18 | K95: Detalle del proceso: 1749-2022- (contratos.gov.co)
A96: 48 | B96: 32879250 | C96: MARIA SEGURA MEJIA | D96: 1750-2022- | E96: AUXILIAR FACTURACION | F96: 1750-2022- | G96: 01 de Abril de 2022 | H96: 30 de Abril de 2022 | I96: 1400000 | J96: 2022-05-18 | K96: Detalle del proceso: 1750-2022- (contratos.gov.co)
A97: =+A96+1 -> 49 | B97: 72158729 | C97: MARLON CAMILO JORDAN HERRERA | D97: 1751-2022- | E97: REFERENCIA Y CONTRAREFERENCIA | F97: 1751-2022- | G97: 01 de Abril de 2022 | H97: 30 de Abril de 2022 | I97: 1500000 | J97: 2022-05-19 | K97: Detalle del proceso: 1751-2022- (contratos.gov.co)
A98: 49 | B98: 1128050440 | C98: MAYRA ALEJANDRA ZAPATA GOMEZ | D98: 1752-2022- | E98: MEDICO DE URGENCIAS | F98: 1752-2022- | G98: 01 de Abril de 2022 | H98: 30 de Abril de 2022 | I98: 6485000 | J98: 2022-05-19 | K98: Detalle del proceso: 1752-2022- (contratos.gov.co)
A99: =+A98+1 -> 50 | B99: 55221348 | C99: MERCEDES SUSANA ESTARITA GUTIERERZ DE PIÑEREZ | D99: 1753-2022- | E99: AUXILIAR FACTURACION | F99: 1753-2022- | G99: 01 de Abril de 2022 | H99: 30 de Abril de 2022 | I99: 1400000 | J99: 2022-05-19 | K99: Detalle del proceso: 1753-2022- (contratos.gov.co)
A100: 50 | B100: 8507626 | C100: MIGUEL ALVAREZ SALCEDO | D100: 1754-2022- | E100: CONDUCTOR DE AMBULANCIA | F100: 1754-2022- | G100: 01 de Abril de 2022 | H100: 30 de Abril de 2022 | I100: 2000000 | J100: 2022-05-19 | K100: Detalle del proceso: 1754-2022- (contratos.gov.co)
A101: =+A100+1 -> 51 | B101: 22468835 | C101: MILAGROS INMACULADA GUZMAN FERNANDEZ | D101: 1755-2022- | E101: ODONTOLOGO | F101: 1755-2022- | G101: 01 de Abril de 2022 | H101: 30 de Abril de 2022 | I101: 1900000 | J101: 2022-05-19 | K101: Detalle del proceso: 1755-2022- (contratos.gov.co)
A102: 51 | B102: 32862578 | C102: MILDRIS PATRICIA QUIJANO VILORIA | D102: 1756-2022- | E102: AUXILIAR DE ODONTOLOGIA | F102: 1756-2022- | G102: 01 de Abril de 2022 | H102: 30 de Abril de 2022 | I102: 1166000 | J102: 2022-05-19 | K102: Detalle del proceso: 1756-2022- (contratos.gov.co)
A103: =+A102+1 -> 52 | B103: 32829349 | C103: NADIA BOVEA NIETO | D103: 1757-2022- | E103: AUXILIAR DE ENFERMERIA URGENCIAS | F103: 1757-2022- | G103: 01 de Abril de 2022 | H103: 30 de Abril de 2022 | I103: 1653600 | J103: 2022-05-19 | K103: Detalle del proceso: 1757-2022- (contratos.gov.co)
A104: 52 | B104: 32819548 | C104: NELLY GALAN HEILBRON | D104: 1758-2022- | E104: AUXILIAR PROMOTORA EN SALUD | F104: 1758-2022- | G104: 01 de Abril de 2022 | H104: 30 de Abril de 2022 | I104: 1300000 | J104: 2022-05-20 | K104: Detalle del proceso: 1758-2022- (contratos.gov.co)
A105: =+A104+1 -> 53 | B105: 22613260 | C105: NERIS ISBAEL ACOSTA FRUTO | D105: 1759-2022- | E105: AUXILIAR DE ENFERMERIA URGENCIAS | F105: 1759-2022- | G105: 01 de Abril de 2022 | H105: 30 de Abril de 2022 | I105: 1653600 | J105: 2022-05-20 | K105: Detalle del proceso: 1759-2022- (contratos.gov.co)
A106: 53 | B106: 72222215 | C106: NILSON ALMARALES GARIZABALO | D106: 1760-2022- | E106: MEDICO MATERNIDAD SEGURA Y URGENCIA | F106: 1760-2022- | G106: 01 de Abril de 2022 | H106: 30 de Abril de 2022 | I106: 6212000 | J106: 2022-05-20 | K106: Detalle del proceso: 1760-2022- (contratos.gov.co)
A107: =+A106+1 -> 54 | B107: 32855196 | C107: NINI JHOANA CHARRIS ENRIQUE | D107: 1761-2022- | E107: AUXILIAR DE ENFERMERIA URGENCIAS | F107: 1761-2022- | G107: 01 de Abril de 2022 | H107: 30 de Abril de 2022 | I107: 1653600 | J107: 2022-05-20 | K107: Detalle del proceso: 1761-2022- (contratos.gov.co)
A108: 54 | B108: 22646712 | C108: NINI JOHANA SOLANO MORENO | D108: 1762-2022- | E108: ENFERMERA JEFE DE URGENCIAS | F108: 1762-2022- | G108: 01 de Abril de 2022 | H108: 30 de Abril de 2022 | I108: 2280000 | J108: 2022-05-20 | K108: Detalle del proceso: 1762-2022- (contratos.gov.co)
A109: =+A108+1 -> 55 | B109: 8737936 | C109: NOE ANIBAL PELAEZ GONZALEZ | D109: 1763-2022- | E109: REGENTE DE FARMACIA | F109: 1763-2022- | G109: 01 de Abril de 2022 | H109: 30 de Abril de 2022 | I109: 2280000 | J109: 2022-05-20 | K109: Detalle del proceso: 1763-2022- (contratos.gov.co)
A110: 55 | B110: 8772224 | C110: OLAINER MONTERO CASTRO | D110: 1764-2022- | E110: AUXILIAR FACTURACION | F110: 1764-2022- | G110: 01 de Abril de 2022 | H110: 30 de Abril de 2022 | I110: 1400000 | J110: 2022-05-20 | K110: Detalle del proceso: 1764-2022- (contratos.gov.co)
A111: =+A110+1 -> 56 | B111: 1140840796 | C111: OLGA MARIA FRANCO ARTEAGA | D111: 1765-2022- | E111: MEDICO DE URGENCIAS | F111: 1765-2022- | G111: 01 de Abril de 2022 | H111: 30 de Abril de 2022 | I111: 3072000 | J111: 2022-05-20 | K111: Detalle del proceso: 1765-2022- (contratos.gov.co)
A112: 56 | B112: 22527122 | C112: RUBY DEL CARMEN BOSSIO HERRERA | D112: 1766-2022- | E112: AUXILIAR DE ENFERMERIA URGENCIAS | F112: 1766-2022- | G112: 01 de Abril de 2022 | H112: 30 de Abril de 2022 | I112: 1653600 | J112: 2022-05-20 | K112: Detalle del proceso: 1766-2022- (contratos.gov.co)
A113: =+A112+1 -> 57 | B113: 1129572439 | C113: SHIRLEY CONSUEGRA OLAYA | D113: 1767-2022- | E113: REFERENCIA Y CONTRAREFERENCIA | F113: 1767-2022- | G113: 01 de Abril de 2022 | H113: 30 de Abril de 2022 | I113: 1500000 | J113: 2022-05-20 | K113: Detalle del proceso: 1767-2022- (contratos.gov.co)
A114: 57 | B114: 22532041 | C114: SORAYA MARIA BACA RODRIGUEZ | D114: 1768-2022- | E114: PSICOLOGA | F114: 1768-2022- | G114: 01 de Abril de 2022 | H114: 30 de Abril de 2022 | I114: 2000000 | J114: 2022-05-20 | K114: Detalle del proceso: 1768-2022- (contratos.gov.co)
A115: =+A114+1 -> 58 | B115: 1234888398 | C115: STEFANY CECILIA MANOTAS CERDA | D115: 1769-2022-COVID19 | E115: FACTURADOR -DIGITADORES PAIWEB- VACUNACION COVID19 | F115: 1769-2022-COVID19 | G115: 01 de Abril de 2022 | H115: 30 de Abril de 2022 | I115: 1400000 | J115: 2022-05-20 | K115: Detalle del proceso: 1769-2022-COVID19 (contratos.gov.co)
A116: 58 | B116: 1143447904 | C116: STEFFANY BRIGGITTE ALVAREZ LLERENA | D116: 1770-2022- | E116: DIGITADOR CUENTA DE ALTO COSTO GESTANTE Res. 0273 de 2019 | F116: 1770-2022- | G116: 01 de Abril de 2022 | H116: 30 de Abril de 2022 | I116: 1500000 | J116: 2022-05-20 | K116: Detalle del proceso: 1770-2022- (contratos.gov.co)
A117: =+A116+1 -> 59 | B117: 1140855017 | C117: STEPHANY LORRAINE NIEBLES ZULUAGA | D117: 1771-2022- | E117: ENFERMERA JEFE DE PROMOCIÓN Y MANTENIMIENTO DE LA SALUD | F117: 1771-2022- | G117: 01 de Abril de 2022 | H117: 30 de Abril de 2022 | I117: 2000000 | J117: 2022-05-20 | K117: Detalle del proceso: 1771-2022- (contratos.gov.co)
A118: 59 | B118: 1042419634 | C118: SUANY DEL CRISTO CADRAZCO IMBETT | D118: 1772-2022- | E118: MEDICO DE URGENCIAS | F118: 1772-2022- | G118: 01 de Abril de 2022 | H118: 30 de Abril de 2022 | I118: 3072000 | J118: 2022-05-20 | K118: Detalle del proceso: 1772-2022- (contratos.gov.co)
A119: =+A118+1 -> 60 | B119: 32884590 | C119: TATIANA DEL CARMEN SUAREZ ABALLERO | D119: 1773-2022- | E119: AUXILIAR DE ENFERMERIA RUTA MATERNO PERINATAL | F119: 1773-2022- | G119: 01 de Abril de 2022 | H119: 30 de Abril de 2022 | I119: 1300000 | J119: 2022-05-20 | K119: Detalle del proceso: 1773-2022- (contratos.gov.co)
A120: 60 | B120: 1129578389 | C120: VIOLENIS PATRICIA MERIÑO CADENA | D120: 1774-2022- | E120: FISIOTERAPEUTA | F120: 1774-2022- | G120: 01 de Abril de 2022 | H120: 30 de Abril de 2022 | I120: 2000000 | J120: 2022-05-20 | K120: Detalle del proceso: 1774-2022- (contratos.gov.co)
A121: =+A120+1 -> 61 | B121: 44153255 | C121: XIMENA ESCORCIA CASTRO | D121: 1775-2022- | E121: MEDICO DE URGENCIAS | F121: 1775-2022- | G121: 01 de Abril de 2022 | H121: 30 de Abril de 2022 | I121: 3072000 | J121: 2022-05-20 | K121: Detalle del proceso: 1775-2022- (contratos.gov.co)
A122: 61 | B122: 32570383 | C122: YEIMIS PAOLA LEMUS VASQUEZ | D122: 1776-2022- | E122: ENFERMERA JEFE DE URGENCIAS | F122: 1776-2022- | G122: 01 de Abril de 2022 | H122: 30 de Abril de 2022 | I122: 2280000 | J122: 2022-05-20 | K122: Detalle del proceso: 1776-2022- (contratos.gov.co)
A123: =+A122+1 -> 62 | B123: 55230396 | C123: YORLETH MALENA FLOREZ ABRIL | D123: 1777-2022- | E123: MEDICO DE URGENCIAS | F123: 1777-2022- | G123: 01 de Abril de 2022 | H123: 30 de Abril de 2022 | I123: 3072000 | J123: 2022-05-20 | K123: Detalle del proceso: 1777-2022- (contratos.gov.co)
A124: 62 | B124: 1042449720 | C124: YULEIDYS ESTHER BERNAL ANGUILLA | D124: 1778-2022- | E124: TRABAJADORA SOCIAL | F124: 1778-2022- | G124: 01 de Abril de 2022 | H124: 30 de Abril de 2022 | I124: 2000000 | J124: 2022-05-20 | K124: Detalle del proceso: 1778-2022- (contratos.gov.co)
A125: =+A124+1 -> 63 | B125: 1047359796 | C125: YULY PAULINA GARCIA BARANDICA | D125: 1779-2022- | E125: TRABAJADORA SOCIAL | F125: 1779-2022- | G125: 01 de Abril de 2022 | H125: 30 de Abril de 2022 | I125: 2000000 | J125: 2022-05-20 | K125: Detalle del proceso: 1779-2022- (contratos.gov.co)
A126: 63 | B126: 44155518 | C126: YURLEY PATRICIA FONTALVO RIVALDO | D126: 1780-2022- | E126: MEDICO DE URGENCIAS | F126: 1780-2022- | G126: 01 de Abril de 2022 | H126: 30 de Abril de 2022 | I126: 3072000 | J126: 2022-05-20 | K126: Detalle del proceso: 1780-2022- (contratos.gov.co)
A127: =+A126+1 -> 64 | B127: 8734956 | C127: EFRAIN CANTILLO GUERRERO | D127: 1781-2022- | E127: CONDUCTOR DE AMBULANCIA | F127: 1781-2022- | G127: 01 de Abril de 2022 | H127: 30 de Abril de 2022 | I127: 2000000 | J127: 2022-05-20 | K127: Detalle del proceso: 1781-2022- (contratos.gov.co)
A128: 64 | B128: 92513461 | C128: FRANCISCO LIÑAN TOBIAS | D128: 1782-2022- | E128: MEDICO | F128: 1782-2022- | G128: 01 de Abril de 2022 | H128: 30 de Abril de 2022 | I128: 5500000 | J128: 2022-05-20 | K128: Detalle del proceso: 1782-2022- (contratos.gov.co)
A129: =+A128+1 -> 65 | B129: 22465848 | C129: ADRIANA OROZCO CANTILLO | D129: 1783-2022- | E129: PERSONAL DE ASEO Y LIMPIEZA | F129: 1783-2022- | G129: 01 de Abril de 2022 | H129: 30 de Abril de 2022 | I129: 1215000 | J129: 2022-05-20 | K129: Detalle del proceso: 1783-2022- (contratos.gov.co)
A130: 65 | B130: 1041890156 | C130: DIANA PATRICIA OSORIO CANTILLO | D130: 1784-2022- | E130: AUXILIAR DE ENFERMERIA -SERVICIOS ESPECIALES | F130: 1784-2022- | G130: 01 de Abril de 2022 | H130: 30 de Abril de 2022 | I130: 1500000 | J130: 2022-05-20 | K130: Detalle del proceso: 1784-2022- (contratos.gov.co)
A131: =+A130+1 -> 66 | B131: 22524112 | C131: DIANA SANDOVAL MANGA | D131: 1785-2022- | E131: ENFERMERA JEFE PROGRAMAS ESPECIALES | F131: 1785-2022- | G131: 01 de Abril de 2022 | H131: 30 de Abril de 2022 | I131: 2000000 | J131: 2022-05-20 | K131: Detalle del proceso: 1785-2022- (contratos.gov.co)
A132: 66 | B132: 1103109488 | C132: ADRIANA MARCELA CASTAÑO RODELO | D132: 1787-2022- | E132: MEDICO PROGRAMA CARDIOVASCULAR | F132: 1787-2022- | G132: 01 de Abril de 2022 | H132: 30 de Abril de 2022 | I132: 2300000 | J132: 2022-05-20 | K132: Detalle del proceso: 1787-2022- (contratos.gov.co)
A133: =+A132+1 -> 67 | B133: 1045688469 | C133: AMY MOVILLA COMAS | D133: 1788-2022- | E133: ENFERMERA JEFE RUTA CARDIOVASCULAR | F133: 1788-2022- | G133: 01 de Abril de 2022 | H133: 30 de Abril de 2022 | I133: 2000000 | J133: 2022-05-20 | K133: Detalle del proceso: 1788-2022- (contratos.gov.co)
A134: 67 | B134: 32866058 | C134: CLAUDIA CABARCAS ARROYO | D134: 1789-2022- | E134: TRABAJADORA SOCIAL | F134: 1789-2022- | G134: 01 de Abril de 2022 | H134: 30 de Abril de 2022 | I134: 2000000 | J134: 2022-05-20 | K134: Detalle del proceso: 1789-2022- (contratos.gov.co)
A135: =+A134+1 -> 68 | B135: 1047235817 | C135: FABRICIO ANDRES TANUZ SIERRA | D135: 1790-2022- | E135: AUXILIAR FACTURACION | F135: 1790-2022- | G135: 01 de Abril de 2022 | H135: 30 de Abril de 2022 | I135: 1400000 | J135: 2022-05-20 | K135: Detalle del proceso: 1790-2022- (contratos.gov.co)
A136: 68 | B136: 1003076153 | C136: HALISSON QUINTERO HOYOS | D136: 1791-2022- | E136: PERSONAL DE ASEO Y LIMPIEZA | F136: 1791-2022- | G136: 01 de Abril de 2022 | H136: 30 de Abril de 2022 | I136: 1400000 | J136: 2022-05-20 | K136: Detalle del proceso: 1791-2022- (contratos.gov.co)
A137: =+A136+1 -> 69 | B137: 1047358567 | C137: JENNIFER PAULA FRUTO MALDONADO | D137: 1792-2022- | E137: MEDICO RIPMS Y CONSULTA EXTERNA | F137: 1792-2022- | G137: 01 de Abril de 2022 | H137: 30 de Abril de 2022 | I137: 4240000 | J137: 2022-05-20 | K137: Detalle del proceso: 1792-2022- (contratos.gov.co)
A138: 69 | B138: 8754502 | C138: JORGE DE LA HOZ DE LA HOZ | D138: 1793-2022- | E138: ORIENTADOR | F138: 1793-2022- | G138: 01 de Abril de 2022 | H138: 30 de Abril de 2022 | I138: 1270000 | J138: 2022-05-20 | K138: Detalle del proceso: 1793-2022- (contratos.gov.co)
A139: =+A138+1 -> 70 | B139: 1042430545 | C139: JORGE LUIS BALLESTAS AFRICANO | D139: 1794-2022- | E139: ORIENTADOR | F139: 1794-2022- | G139: 01 de Abril de 2022 | H139: 30 de Abril de 2022 | I139: 1400000 | J139: 2022-05-20 | K139: Detalle del proceso: 1794-2022- (contratos.gov.co)
A140: 70 | B140: 1042439853 | C140: KERVY DIYAN JINETTE BARRIOS | D140: 1795-2022- | E140: AUXILIAR ADMINISTRATIVO -DIGITACION CUENTA DE ALTO COSTO EN LA CONSOLIDACION DE INFORMACION - PROGRAMA CARDIOVASCULAR Res. 2463 de 2014. | F140: 1795-2022- | G140: 01 de Abril de 2022 | H140: 30 de Abril de 2022 | I140: 1500000 | J140: 2022-05-20 | K140: Detalle del proceso: 1795-2022- (contratos.gov.co)
A141: =+A140+1 -> 71 | B141: 1140853943 | C141: LEIDY VANESSA BUSTILLO FORMARIS | D141: 1796-2022- | E141: ODONTOLOGO | F141: 1796-2022- | G141: 01 de Abril de 2022 | H141: 30 de Abril de 2022 | I141: 1900000 | J141: 2022-05-20 | K141: Detalle del proceso: 1796-2022- (contratos.gov.co)
A142: 71 | B142: 32796648 | C142: LILIANA CECILIA OROZCO ROJAS | D142: 1797-2022- | E142: ODONTOLOGO | F142: 1797-2022- | G142: 01 de Abril de 2022 | H142: 30 de Abril de 2022 | I142: 1900000 | J142: 2022-05-20 | K142: Detalle del proceso: 1797-2022- (contratos.gov.co)
A143: =+A142+1 -> 72 | B143: 22738424 | C143: LINA MARGARITA TORO GARCIA | D143: 1798-2022- | E143: MEDICO PROGRAMA CARDIOVASCULAR | F143: 1798-2022- | G143: 01 de Abril de 2022 | H143: 30 de Abril de 2022 | I143: 4600000 | J143: 2022-05-20 | K143: Detalle del proceso: 1798-2022- (contratos.gov.co)
A144: 72 | B144: 32666054 | C144: LUCY CHING ANAYA | D144: 1799-2022- | E144: MEDICO CONSULTA EXTERNA | F144: 1799-2022- | G144: 01 de Abril de 2022 | H144: 30 de Abril de 2022 | I144: 2120000 | J144: 2022-05-20 | K144: Detalle del proceso: 1799-2022- (contratos.gov.co)
A145: =+A144+1 -> 73 | B145: 22444561 | C145: LUZ MARINA DONADO BARRIOS | D145: 1800-2022- | E145: AUXILIAR FACTURACION | F145: 1800-2022- | G145: 01 de Abril de 2022 | H145: 30 de Abril de 2022 | I145: 1400000 | J145: 2022-05-20 | K145: Detalle del proceso: 1800-2022- (contratos.gov.co)
A146: 73 | B146: 1042456964 | C146: MARI CARMEN CASTRO GARCIA | D146: 1801-2022- | E146: PSICOLOGA | F146: 1801-2022- | G146: 01 de Abril de 2022 | H146: 30 de Abril de 2022 | I146: 2000000 | J146: 2022-05-21 | K146: Detalle del proceso: 1801-2022- (contratos.gov.co)
A147: =+A146+1 -> 74 | B147: 32896837 | C147: MARYULIS PATRICIA CRUZ JIMENEZ | D147: 1802-2022- | E147: ENFERMERA JEFE DE PROMOCIÓN Y MANTENIMIENTO DE LA SALUD | F147: 1802-2022- | G147: 01 de Abril de 2022 | H147: 30 de Abril de 2022 | I147: 2000000 | J147: 2022-05-21 | K147: Detalle del proceso: 1802-2022- (contratos.gov.co)
A148: 74 | B148: 22693871 | C148: MIRIAM MARIA VILLARREAL DE ALBA | D148: 1803-2022- | E148: PERSONAL DE ASEO Y LIMPIEZA | F148: 1803-2022- | G148: 01 de Abril de 2022 | H148: 30 de Abril de 2022 | I148: 1400000 | J148: 2022-05-21 | K148: Detalle del proceso: 1803-2022- (contratos.gov.co)
A149: =+A148+1 -> 75 | B149: 1042426937 | C149: NIDIA ESTHER RAMOS MARTINEZ | D149: 1804-2022- | E149: AUXILIAR DE ENFERMERIA DE PROMOCION Y MANTENIMIENTO DE LA SALUD | F149: 1804-2022- | G149: 01 de Abril de 2022 | H149: 30 de Abril de 2022 | I149: 1300000 | J149: 2022-05-21 | K149: Detalle del proceso: 1804-2022- (contratos.gov.co)
A150: 75 | B150: 55307582 | C150: PAOLA VALENCIA GUERRERO | D150: 1805-2022- | E150: MEDICO PROGRAMA CARDIOVASCULAR | F150: 1805-2022- | G150: 01 de Abril de 2022 | H150: 30 de Abril de 2022 | I150: 2300000 | J150: 2022-05-21 | K150: Detalle del proceso: 1805-2022- (contratos.gov.co)
A151: =+A150+1 -> 76 | B151: 32878246 | C151: SHIRLY ISABEL RECIO COLLANTE | D151: 1806-2022- | E151: AUXILIAR DE ENFERMERIA -PROGRAMA CARDIOVASCULAR EXTERIOR | F151: 1806-2022- | G151: 01 de Abril de 2022 | H151: 30 de Abril de 2022 | I151: 2100000 | J151: 2022-05-21 | K151: Detalle del proceso: 1806-2022- (contratos.gov.co)
A152: 76 | B152: 22692801 | C152: SUNILDA ESTHER SAURIT ESCORCIA | D152: 1807-2022- | E152: AUXILIAR DE ENFERMERIA DE PROMOCION Y MANTENIMIENTO DE LA SALUD | F152: 1807-2022- | G152: 01 de Abril de 2022 | H152: 30 de Abril de 2022 | I152: 1166000 | J152: 2022-05-21 | K152: Detalle del proceso: 1807-2022- (contratos.gov.co)
A153: =+A152+1 -> 77 | B153: 1007908949 | C153: VERONICA POLET TODARO PEDROZO | D153: 1808-2022- | E153: MEDICO PROGRAMA CARDIOVASCULAR | F153: 1808-2022- | G153: 01 de Abril de 2022 | H153: 30 de Abril de 2022 | I153: 2300000 | J153: 2022-05-21 | K153: Detalle del proceso: 1808-2022- (contratos.gov.co)
A154: 77 | B154: 32876060 | C154: YAKELIN BOLAÑO MIRANDA | D154: 1809-2022- | E154: AUXILIAR DE ODONTOLOGIA | F154: 1809-2022- | G154: 01 de Abril de 2022 | H154: 30 de Abril de 2022 | I154: 1166000 | J154: 2022-05-21 | K154: Detalle del proceso: 1809-2022- (contratos.gov.co)
A155: =+A154+1 -> 78 | B155: 55305408 | C155: YURI PAOLA MOLINARES FERRER | D155: 1810-2022- | E155: AUXILIAR FACTURACION | F155: 1810-2022- | G155: 01 de Abril de 2022 | H155: 30 de Abril de 2022 | I155: 1400000 | J155: 2022-05-21 | K155: Detalle del proceso: 1810-2022- (contratos.gov.co)
A156: 78 | B156: 32822389 | C156: ISABEL AMERICA DE ALBA RODRIGUEZ | D156: 1811-2022- | E156: AUXILIAR FACTURACION | F156: 1811-2022- | G156: 01 de Abril de 2022 | H156: 30 de Abril de 2022 | I156: 1400000 | J156: 2022-05-21 | K156: Detalle del proceso: 1811-2022- (contratos.gov.co)
A157: =+A156+1 -> 79 | B157: 1042447595 | C157: JOYCER CARLOS BONILLA OYOLA | D157: 1812-2022- | E157: ORIENTADOR | F157: 1812-2022- | G157: 01 de Abril de 2022 | H157: 30 de Abril de 2022 | I157: 1400000 | J157: 2022-05-21 | K157: Detalle del proceso: 1812-2022- (contratos.gov.co)
A158: 79 | B158: 1140843226 | C158: NATHALIE OSORIO GONZALEZ | D158: 1813-2022- | E158: MEDICO | F158: 1813-2022- | G158: 01 de Abril de 2022 | H158: 30 de Abril de 2022 | I158: 5500000 | J158: 2022-05-21 | K158: Detalle del proceso: 1813-2022- (contratos.gov.co)
A159: =+A158+1 -> 80 | B159: 8721508 | C159: ALONSO JOSÉ RIQUETT DE LA HOZ | D159: 1814-2022- | E159: MEDICO CONSULTA EXTERNA | F159: 1814-2022- | G159: 01 de Abril de 2022 | H159: 30 de Abril de 2022 | I159: 2120000 | J159: 2022-05-21 | K159: Detalle del proceso: 1814-2022- (contratos.gov.co)
A160: 80 | B160: 1045704276 | C160: ANA MILENA HERRERA ALVIS | D160: 1815-2022- | E160: ENFERMERA JEFE DE PROMOCIÓN Y MANTENIMIENTO DE LA SALUD | F160: 1815-2022- | G160: 01 de Abril de 2022 | H160: 30 de Abril de 2022 | I160: 3200000 | J160: 2022-05-21 | K160: Detalle del proceso: 1815-2022- (contratos.gov.co)
A161: =+A160+1 -> 81 | B161: 1046813692 | C161: CRISTHOFER DE JESUS ALVARADO SOLANO | D161: 1816-2022- | E161: AUXILIAR FACTURACION | F161: 1816-2022- | G161: 01 de Abril de 2022 | H161: 30 de Abril de 2022 | I161: 1400000 | J161: 2022-05-21 | K161: Detalle del proceso: 1816-2022- (contratos.gov.co)
A162: 81 | B162: 32769312 | C162: DORIS PADILLA MOLINA | D162: 1817-2022- | E162: AUXILIAR DE ODONTOLOGIA | F162: 1817-2022- | G162: 01 de Abril de 2022 | H162: 30 de Abril de 2022 | I162: 1166000 | J162: 2022-05-21 | K162: Detalle del proceso: 1817-2022- (contratos.gov.co)
A163: =+A162+1 -> 82 | B163: 22647051 | C163: EDELMIRA DUQUE LAMADRID | D163: 1818-2022- | E163: FISIOTERAPEUTA | F163: 1818-2022- | G163: 01 de Abril de 2022 | H163: 30 de Abril de 2022 | I163: 1900000 | J163: 2022-05-21 | K163: Detalle del proceso: 1818-2022- (contratos.gov.co)
A164: 82 | B164: 60311278 | C164: EVA FLOREZ PARRA | D164: 1819-2022- | E164: MEDICO CONSULTA EXTERNA | F164: 1819-2022- | G164: 01 de Abril de 2022 | H164: 30 de Abril de 2022 | I164: 4620000 | J164: 2022-05-21 | K164: Detalle del proceso: 1819-2022- (contratos.gov.co)
A165: =+A164+1 -> 83 | B165: 1140897820 | C165: FRANCISCO JAVIER RANGEL BALLESTAS | D165: 1820-2022- | E165: MEDICO RIPMS Y CONSULTA EXTERNA | F165: 1820-2022- | G165: 01 de Abril de 2022 | H165: 30 de Abril de 2022 | I165: 2120000 | J165: 2022-05-21 | K165: Detalle del proceso: 1820-2022- (contratos.gov.co)
A166: 83 | B166: 1140845475 | C166: LAURY DEL CARMEN PACHECO SANCHEZ | D166: 1821-2022- | E166: ODONTOLOGO | F166: 1821-2022- | G166: 26 de Abril de 2022 | H166: 30 de Abril de 2022 | I166: 317000 | J166: 2022-05-21 | K166: Detalle del proceso: 1821-2022- (contratos.gov.co)
A167: =+A166+1 -> 84 | B167: 1043009939 | C167: MARIA JOSE AHUMADA RODRIGUEZ | D167: 1822-2022- | E167: MEDICO CONSULTA EXTERNA | F167: 1822-2022- | G167: 01 de Abril de 2022 | H167: 30 de Abril de 2022 | I167: 4240000 | J167: 2022-05-21 | K167: Detalle del proceso: 1822-2022- (contratos.gov.co)
A168: 84 | B168: 22531673 | C168: VIVIANA LUZ OYOLA ARRIETA | D168: 1823-2022- | E168: PERSONAL DE ASEO Y LIMPIEZA | F168: 1823-2022- | G168: 01 de Abril de 2022 | H168: 30 de Abril de 2022 | I168: 1400000 | J168: 2022-05-21 | K168: Detalle del proceso: 1823-2022- (contratos.gov.co)
A169: =+A168+1 -> 85 | B169: 1045680952 | C169: WILLIAM RAFAEL DAVIDSON URIETA | D169: 1824-2022- | E169: MEDICO CONSULTA EXTERNA | F169: 1824-2022- | G169: 01 de Abril de 2022 | H169: 30 de Abril de 2022 | I169: 4240000 | J169: 2022-05-21 | K169: Detalle del proceso: 1824-2022- (contratos.gov.co)
A170: 85 | B170: 1001872916 | C170: YURLEIDYS VANESSA BECERRA CANTILLO | D170: 1825-2022- | E170: AUXILIAR DE ENFERMERIA CONSULTA EXTERNA | F170: 1825-2022- | G170: 01 de Abril de 2022 | H170: 30 de Abril de 2022 | I170: 1166000 | J170: 2022-05-21 | K170: Detalle del proceso: 1825-2022- (contratos.gov.co)
A171: =+A170+1 -> 86 | B171: 32865503 | C171: ZULAI YAZMIN DONADO PARODIS | D171: 1826-2022- | E171: AUXILIAR DE ENFERMERIA RUTA MATERNO PERINATAL | F171: 1826-2022- | G171: 01 de Abril de 2022 | H171: 30 de Abril de 2022 | I171: 1400000 | J171: 2022-05-21 | K171: Detalle del proceso: 1826-2022- (contratos.gov.co)
A172: 86 | B172: 32758673 | C172: LILIANA MORALES LOPEZ | D172: 1827-2022- | E172: TRABAJADORA SOCIAL | F172: 1827-2022- | G172: 01 de Abril de 2022 | H172: 30 de Abril de 2022 | I172: 2000000 | J172: 2022-05-21 | K172: Detalle del proceso: 1827-2022- (contratos.gov.co)
A173: =+A172+1 -> 87 | B173: 1042426787 | C173: YULEY LINETH MARIN NIETO | D173: 1828-2022- | E173: AUXILIAR FACTURACION | F173: 1828-2022- | G173: 01 de Abril de 2022 | H173: 30 de Abril de 2022 | I173: 1400000 | J173: 2022-05-21 | K173: Detalle del proceso: 1828-2022- (contratos.gov.co)
A174: 87 | B174: 1045674051 | C174: SHIRLY PAOLA GUZMAN GUZMAN | D174: 1829-2022- | E174: ODONTOLOGO | F174: 1829-2022- | G174: 01 de Abril de 2022 | H174: 30 de Abril de 2022 | I174: 1900000 | J174: 2022-05-21 | K174: Detalle del proceso: 1829-2022- (contratos.gov.co)
A175: =+A174+1 -> 88 | B175: 22633549 | C175: ANA MARCELA VALENCIA HERNANDEZ | D175: 1831-2022- | E175: PERSONAL DE ASEO Y LIMPIEZA | F175: 1831-2022- | G175: 01 de Abril de 2022 | H175: 30 de Abril de 2022 | I175: 1400000 | J175: 2022-05-21 | K175: Detalle del proceso: 1831-2022- (contratos.gov.co)
A176: 88 | B176: 72155587 | C176: CARLOS ARTURO QUINTANA BORELLY | D176: 1832-2022- | E176: ORIENTADOR | F176: 1832-2022- | G176: 01 de Abril de 2022 | H176: 30 de Abril de 2022 | I176: 1400000 | J176: 2022-05-23 | K176: Detalle del proceso: 1832-2022- (contratos.gov.co)
A177: =+A176+1 -> 89 | B177: 22551160 | C177: GISELL MILENA HERRERA ZUÑIGA | D177: 1833-2022- | E177: MEDICO CONSULTA EXTERNA | F177: 1833-2022- | G177: 01 de Abril de 2022 | H177: 30 de Abril de 2022 | I177: 2120000 | J177: 2022-05-23 | K177: Detalle del proceso: 1833-2022- (contratos.gov.co)
A178: 89 | B178: 1143449271 | C178: HELEN YIRE MALDONADO MIRANDA | D178: 1834-2022- | E178: AUXILIAR DE ODONTOLOGIA | F178: 1834-2022- | G178: 01 de Abril de 2022 | H178: 30 de Abril de 2022 | I178: 1166000 | J178: 2022-05-23 | K178: Detalle del proceso: 1834-2022- (contratos.gov.co)
A179: =+A178+1 -> 90 | B179: 32703101 | C179: JANETH DEL CARMEN GUZMAN CANTILLO | D179: 1835-2022- | E179: AUXILIAR FACTURACION | F179: 1835-2022- | G179: 01 de Abril de 2022 | H179: 30 de Abril de 2022 | I179: 1400000 | J179: 2022-05-23 | K179: Detalle del proceso: 1835-2022- (contratos.gov.co)
A180: 90 | B180: 1042444832 | C180: JHONNATAN ALFONSO DE LA HOZ BARRIOS | D180: 1836-2022- | E180: MEDICO CONSULTA EXTERNA | F180: 1836-2022- | G180: 01 de Abril de 2022 | H180: 30 de Abril de 2022 | I180: 4240000 | J180: 2022-05-23 | K180: Detalle del proceso: 1836-2022- (contratos.gov.co)
A181: =+A180+1 -> 91 | B181: 19590090 | C181: LUIS EDUARDO RODRIGUEZ RAMIREZ | D181: 1837-2022- | E181: ODONTOLOGO | F181: 1837-2022- | G181: 01 de Abril de 2022 | H181: 30 de Abril de 2022 | I181: 1900000 | J181: 2022-05-23 | K181: Detalle del proceso: 1837-2022- (contratos.gov.co)
A182: 91 | B182: 1047228049 | C182: MARIA FERNANDA DE LA HOZ DE MOYA | D182: 1838-2022- | E182: ENFERMERA JEFE DE PROMOCIÓN Y MANTENIMIENTO DE LA SALUD | F182: 1838-2022- | G182: 01 de Abril de 2022 | H182: 30 de Abril de 2022 | I182: 2000000 | J182: 2022-05-23 | K182: Detalle del proceso: 1838-2022- (contratos.gov.co)
A183: =+A182+1 -> 92 | B183: 8638052 | C183: MARTIN RAFAEL CORONADO PACHECO | D183: 1839-2022- | E183: ORIENTADOR | F183: 1839-2022- | G183: 01 de Abril de 2022 | H183: 30 de Abril de 2022 | I183: 1400000 | J183: 2022-05-23 | K183: Detalle del proceso: 1839-2022- (contratos.gov.co)
A184: 92 | B184: 22457575 | C184: MELBA MEZA PERDOMO | D184: 1840-2022- | E184: TRABAJADORA SOCIAL | F184: 1840-2022- | G184: 01 de Abril de 2022 | H184: 30 de Abril de 2022 | I184: 2000000 | J184: 2022-05-23 | K184: Detalle del proceso: 1840-2022- (contratos.gov.co)
A185: =+A184+1 -> 93 | B185: 8749064 | C185: OSVALDO ANTONIO CUENTAS DE LAS SALAS | D185: 1841-2022- | E185: ODONTOLOGO | F185: 1841-2022- | G185: 01 de Abril de 2022 | H185: 30 de Abril de 2022 | I185: 1900000 | J185: 2022-05-23 | K185: Detalle del proceso: 1841-2022- (contratos.gov.co)
A186: 93 | B186: 1045170023 | C186: FERNEY ALBERTO OROZCO QUIROZ | D186: 1842-2022- | E186: AUXILIAR FACTURACION | F186: 1842-2022- | G186: 01 de Abril de 2022 | H186: 30 de Abril de 2022 | I186: 1400000 | J186: 2022-05-23 | K186: Detalle del proceso: 1842-2022- (contratos.gov.co)
A187: =+A186+1 -> 94 | B187: 1042420928 | C187: DINA DEL CARMEN CUELLO DONADO | D187: 1844-2022- | E187: AUXILIAR FACTURACION | F187: 1844-2022- | G187: 01 de Abril de 2022 | H187: 30 de Abril de 2022 | I187: 1400000 | J187: 2022-05-23 | K187: Detalle del proceso: 1844-2022- (contratos.gov.co)
A188: 94 | B188: 3732705 | C188: FREDDY ORLANDO MARIMON LOZANO | D188: 1845-2022- | E188: ORIENTADOR | F188: 1845-2022- | G188: 01 de Abril de 2022 | H188: 30 de Abril de 2022 | I188: 1400000 | J188: 2022-05-23 | K188: Detalle del proceso: 1845-2022- (contratos.gov.co)
A189: =+A188+1 -> 95 | B189: 1045729651 | C189: KAROLAY PAOLA GARCIA OSPINO | D189: 1846-2022- | E189: MEDICO RIPMS Y CONSULTA EXTERNA | F189: 1846-2022- | G189: 01 de Abril de 2022 | H189: 30 de Abril de 2022 | I189: 4240000 | J189: 2022-05-23 | K189: Detalle del proceso: 1846-2022- (contratos.gov.co)
A190: 95 | B190: 1045747916 | C190: LEIDY DIANA PAEZ OROZCO | D190: 1847-2022- | E190: ENFERMERA JEFE CONSULTA EXTRA Y SERVICIOS ESPECIALES | F190: 1847-2022- | G190: 01 de Abril de 2022 | H190: 30 de Abril de 2022 | I190: 2000000 | J190: 2022-05-23 | K190: Detalle del proceso: 1847-2022- (contratos.gov.co)
A191: =+A190+1 -> 96 | B191: 32819834 | C191: MARIBEL NIEBLES ESCORCIA | D191: 1848-2022- | E191: AUXILIAR DE ODONTOLOGIA | F191: 1848-2022- | G191: 01 de Abril de 2022 | H191: 30 de Abril de 2022 | I191: 1166000 | J191: 2022-05-23 | K191: Detalle del proceso: 1848-2022- (contratos.gov.co)
A192: 96 | B192: 36755636 | C192: MELBA RUBIELA JATIVA SALAZAR | D192: 1849-2022- | E192: TRABAJADORA SOCIAL | F192: 1849-2022- | G192: 01 de Abril de 2022 | H192: 30 de Abril de 2022 | I192: 2000000 | J192: 2022-05-23 | K192: Detalle del proceso: 1849-2022- (contratos.gov.co)
A193: =+A192+1 -> 97 | B193: 1046816174 | C193: ROSA MARIA PONCE PINEDA | D193: 1850-2022- | E193: AUXILIAR FACTURACION | F193: 1850-2022- | G193: 01 de Abril de 2022 | H193: 30 de Abril de 2022 | I193: 1400000 | J193: 2022-05-23 | K193: Detalle del proceso: 1850-2022- (contratos.gov.co)
A194: 97 | B194: 22664903 | C194: SORELYS COLPAS VILORIA | D194: 1851-2022- | E194: PERSONAL DE ASEO Y LIMPIEZA | F194: 1851-2022- | G194: 01 de Abril de 2022 | H194: 30 de Abril de 2022 | I194: 1400000 | J194: 2022-05-23 | K194: Detalle del proceso: 1851-2022- (contratos.gov.co)
A195: =+A194+1 -> 98 | B195: 32866918 | C195: ZULMA LEONOR MARTINEZ IGLESIAS | D195: 1852-2022- | E195: ODONTOLOGO | F195: 1852-2022- | G195: 01 de Abril de 2022 | H195: 30 de Abril de 2022 | I195: 1900000 | J195: 2022-05-23 | K195: Detalle del proceso: 1852-2022- (contratos.gov.co)
A196: 98 | B196: 1143437950 | C196: ALBA KARINA ARIAS ESCOBAR | D196: 1854-2022- | E196: MEDICO CONSULTA EXTERNA Y URGENCIAS LA CENTRAL | F196: 1854-2022- | G196: 01 de Abril de 2022 | H196: 30 de Abril de 2022 | I196: 5192000 | J196: 2022-05-23 | K196: Detalle del proceso: 1854-2022- (contratos.gov.co)
A197: =+A196+1 -> 99 | B197: 1041890282 | C197: ARACELLY JOHANNA ARIZA ARIZA | D197: 1855-2022- | E197: PERSONAL DE ASEO Y LIMPIEZA | F197: 1855-2022- | G197: 01 de Abril de 2022 | H197: 30 de Abril de 2022 | I197: 1400000 | J197: 2022-05-23 | K197: Detalle del proceso: 1855-2022- (contratos.gov.co)
A198: 99 | B198: 32869290 | C198: ARGENEDITH YEPEZ ESCALANTE | D198: 1856-2022- | E198: MEDICO DE PROMOCIÓN Y MANTENIMIENTO DE LA SALUD | F198: 1856-2022- | G198: 01 de Abril de 2022 | H198: 30 de Abril de 2022 | I198: 2120000 | J198: 2022-05-23 | K198: Detalle del proceso: 1856-2022- (contratos.gov.co)
A199: =+A198+1 -> 100 | B199: 72153271 | C199: BORIS ENRIQUE ARROYO ESCOBAR | D199: 1857-2022- | E199: ORIENTADOR | F199: 1857-2022- | G199: 01 de Abril de 2022 | H199: 30 de Abril de 2022 | I199: 1400000 | J199: 2022-05-23 | K199: Detalle del proceso: 1857-2022- (contratos.gov.co)
A200: 100 | B200: 32896364 | C200: DAILY CAROLINA PEREZ GUETTE | D200: 1858-2022- | E200: ODONTOLOGO | F200: 1858-2022- | G200: 01 de Abril de 2022 | H200: 30 de Abril de 2022 | I200: 1900000 | J200: 2022-05-23 | K200: Detalle del proceso: 1858-2022- (contratos.gov.co)
... 359 more rows

Sheet PIC ABRIL 2022
A1: CEDULA | B1: NOMBRE Y APELLIDO | C1: #OPS AÑO | D1: OBJETO DEL CONTRATO | E1: FECHA INICIO | F1: FECHA TERMINACION | G1: VALOR TOTAL CONTRATOS | H1: FECHA LINK | I1: PROCENTAJE EJECUCION | J1: RECURSOS TOTALES DESEMBOLSADOS O PAGADOS | K1: RECURSOS PENDIENTES DE EJECUTAR | L1: CANTIDAD DE OTROSIS REALIZADOS | M1: LINK SECOP
A2: 1143442239 | B2: SAYURIS OCAMPO GARCIA | C2: 0051-2022-PIC | D2: AGENTE PRIMARIA EN SALUD APS ZOONOSIS | E2: 01 de abril de 2022 | F2: 30 de junio de 2022 | G2: 4200000 | H2: 2022-06-07 | I2: 1 | J2: 4200000 | K2: 0 | L2: 0 | M2: Detalle del proceso: 1652-2022- (contratos.gov.co)
A3: 22746499 | B3: JOHRANIS ESTHER SALAS ACUÑA | C3: 0052-2022-PIC | D3: AGENTE PRIMARIA EN SALUD APS ZOONOSIS | E3: 01 de abril de 2022 | F3: 30 de junio de 2022 | G3: 4200000 | H3: 2022-06-07 | I3: 1 | J3: 4200000 | K3: 0 | L3: 0 | M3: Detalle del proceso: 1653-2022- (contratos.gov.co)
A4: 8784783 | B4: DAIRO MANRIQUE MORALES BOVEA | C4: 0053-2022-PIC | D4: AGENTE PRIMARIA EN SALUD APS ZOONOSIS | E4: 01 de abril de 2022 | F4: 30 de junio de 2022 | G4: 4200000 | H4: 2022-06-07 | I4: 1 | J4: 4200000 | K4: 0 | L4: 0 | M4: Detalle del proceso: 1654-2022- (contratos.gov.co)
A5: 8778545 | B5: JOSE MARIO WELMAN GUTIERREZ | C5: 0054-2022-PIC | D5: AGENTE PRIMARIA EN SALUD APS ZOONOSIS | E5: 01 de abril de 2022 | F5: 30 de junio de 2022 | G5: 4200000 | H5: 2022-06-07 | I5: 1 | J5: 4200000 | K5: 0 | L5: 0 | M5: Detalle del proceso: 1655-2022- (contratos.gov.co)
A6: 32829868 | B6: JUDITH ISABEL ARCON MEDINA | C6: 0055-2022-PIC | D6: AGENTE PRIMARIA EN SALUD APS ZOONOSIS | E6: 01 de abril de 2022 | F6: 30 de junio de 2022 | G6: 4200000 | H6: 2022-06-07 | I6: 1 | J6: 4200000 | K6: 0 | L6: 0 | M6: Detalle del proceso: 1656-2022- (contratos.gov.co)
A7: 32872420 | B7: LUZ MARINA GARIZAO TAPIA | C7: 0056-2022-PIC | D7: AGENTE PRIMARIA EN SALUD APS ZOONOSIS | E7: 01 de abril de 2022 | F7: 30 de junio de 2022 | G7: 4200000 | H7: 2022-06-07 | I7: 1 | J7: 4200000 | K7: 0 | L7: 0 | M7: Detalle del proceso: 1657-2022- (contratos.gov.co)
A8: 72305219 | B8: OSCAR JAVIER ORTIZ CANTILLO | C8: 0057-2022-PIC | D8: AGENTE PRIMARIA EN SALUD APS ZOONOSIS | E8: 01 de abril de 2022 | F8: 30 de junio de 2022 | G8: 4200000 | H8: 2022-06-07 | I8: 1 | J8: 4200000 | K8: 0 | L8: 0 | M8: Detalle del proceso: 1658-2022- (contratos.gov.co)
A9: 1046873932 | B9: CRISTIAN CAMILO ALONSO JIMENEZ | C9: 0058-2022-PIC | D9: AGENTE PRIMARIA EN SALUD APS ZOONOSIS | E9: 01 de abril de 2022 | F9: 30 de junio de 2022 | G9: 4200000 | H9: 2022-06-07 | I9: 1 | J9: 4200000 | K9: 0 | L9: 0 | M9: Detalle del proceso: 1659-2022- (contratos.gov.co)
A10: 32870003 | B10: DALGIS ESTHER BADILLO FONTALVO | C10: 0059-2022-PIC | D10: AGENTE PRIMARIA EN SALUD APS ZOONOSIS | E10: 01 de abril de 2022 | F10: 30 de junio de 2022 | G10: 4200000 | H10: 2022-06-07 | I10: 1 | J10: 4200000 | K10: 0 | L10: 0 | M10: Detalle del proceso: 1660-2022- (contratos.gov.co)
A11: 3779189 | B11: JAIME ENRIQUE MARQUEZ VILLAFAÑE | C11: 0060-2022-PIC | D11: AGENTE PRIMARIA EN SALUD APS ZOONOSIS | E11: 01 de abril de 2022 | F11: 30 de junio de 2022 | G11: 4200000 | H11: 2022-06-07 | I11: 1 | J11: 4200000 | K11: 0 | L11: 0 | M11: Detalle del proceso: 1661-2022- (contratos.gov.co)
A12: 72305130 | B12: RONALD JOSE MARQUEZ MARQUEZ | C12: 0061-2022-PIC | D12: AGENTE PRIMARIA EN SALUD APS ZOONOSIS | E12: 01 de abril de 2022 | F12: 30 de junio de 2022 | G12: 4200000 | H12: 2022-06-07 | I12: 1 | J12: 4200000 | K12: 0 | L12: 0 | M12: Detalle del proceso: 1662-2022- (contratos.gov.co)
A13: 72304726 | B13: RUBEN DARIO MARQUEZ ZURITA | C13: 0062-2022-PIC | D13: AGENTE PRIMARIA EN SALUD APS ZOONOSIS | E13: 01 de abril de 2022 | F13: 30 de junio de 2022 | G13: 4200000 | H13: 2022-06-07 | I13: 1 | J13: 4200000 | K13: 0 | L13: 0 | M13: Detalle del proceso: 1663-2022- (contratos.gov.co)
A14: 1043006412 | B14: ADRIANA CAROLINA MARCHENA BARROS | C14: 0063-2022-PIC | D14: ATENCION PRIMARIA EN SALUD | E14: 01 de abril de 2022 | F14: 30 de junio de 2022 | G14: 4200000 | H14: 2022-06-07 | I14: 1 | J14: 4200000 | K14: 0 | L14: 0 | M14: Detalle del proceso: 1664-2022- (contratos.gov.co)
A15: 1046873268 | B15: JULIANA BANDERA GONZALEZ | C15: 0064-2022-PIC | D15: ATENCION PRIMARIA EN SALUD | E15: 01 de abril de 2022 | F15: 30 de junio de 2022 | G15: 4200000 | H15: 2022-06-07 | I15: 1 | J15: 4200000 | K15: 0 | L15: 0 | M15: Detalle del proceso: 1666-2022- (contratos.gov.co)
A16: 22543666 | B16: DENNYS MARIELA ARZUZAR GALVIS | C16: 0065-2022-PIC | D16: ATENCION PRIMARIA EN SALUD | E16: 01 de abril de 2022 | F16: 30 de junio de 2022 | G16: 4200000 | H16: 2022-06-07 | I16: 1 | J16: 4200000 | K16: 0 | L16: 0 | M16: Detalle del proceso: 1667-2022- (contratos.gov.co)
A17: 1143136225 | B17: MARTA CECILIA MARIN ZAPATA | C17: 0066-2022-PIC | D17: ATENCION PRIMARIA EN SALUD | E17: 01 de abril de 2022 | F17: 30 de junio de 2022 | G17: 4200000 | H17: 2022-06-07 | I17: 1 | J17: 4200000 | K17: 0 | L17: 0 | M17: Detalle del proceso: 1668-2022- (contratos.gov.co)
A18: 1046874897 | B18: LEIDIANIS MARIA TORRES BLANCO | C18: 0067-2022-PIC | D18: ATENCION PRIMARIA EN SALUD | E18: 01 de abril de 2022 | F18: 30 de junio de 2022 | G18: 4200000 | H18: 2022-06-07 | I18: 1 | J18: 4200000 | K18: 0 | L18: 0 | M18: Detalle del proceso: 1669-2022- (contratos.gov.co)
A19: 44160070 | B19: GLORIA ESTEFANY ZAPATA REZA | C19: 0068-2022-PIC | D19: ATENCION PRIMARIA EN SALUD | E19: 01 de abril de 2022 | F19: 30 de junio de 2022 | G19: 4200000 | H19: 2022-06-07 | I19: 1 | J19: 4200000 | K19: 0 | L19: 0 | M19: Detalle del proceso: 1671-2022- (contratos.gov.co)
A20: 44150081 | B20: MARY LUZ GUERRERO CERVANTES | C20: 0069-2022-PIC | D20: ATENCION PRIMARIA EN SALUD | E20: 01 de abril de 2022 | F20: 30 de junio de 2022 | G20: 4200000 | H20: 2022-06-07 | I20: 1 | J20: 4200000 | K20: 0 | L20: 0 | M20: Detalle del proceso: 1672-2022- (contratos.gov.co)
A21: 32758730 | B21: NUBIA STELLA CANO GUILLEN | C21: 0070-2022-PIC | D21: ATENCION PRIMARIA EN SALUD | E21: 01 de abril de 2022 | F21: 30 de junio de 2022 | G21: 4200000 | I21: 1 | J21: 4200000 | K21: 0 | L21: 0 | M21: Detalle del proceso: 1673-2022- (contratos.gov.co)
A22: 1043931882 | B22: AREIDIS MEDINA SANJUAN | C22: 0071-2022-PIC | D22: ATENCION PRIMARIA EN SALUD | E22: 01 de abril de 2022 | F22: 30 de junio de 2022 | G22: 4200000 | H22: 2022-06-07 | I22: 1 | J22: 4200000 | K22: 0 | L22: 0 | M22: Detalle del proceso: 1674-2022- (contratos.gov.co)
A23: 1046873734 | B23: VANESSA PAOLA REYES PEREZ | C23: 0072-2022-PIC | D23: TECNICO EN SALUD OCUPACIONAL | E23: 01 de abril de 2022 | F23: 30 de junio de 2022 | G23: 7500000 | H23: 2022-06-07 | I23: 1 | J23: 7500000 | K23: 0 | L23: 0 | M23: Detalle del proceso: 1675-2022- (contratos.gov.co)
A24: 22617307 | B24: ETILVIA TERESA DONADO CABALLERO | C24: 0073-2022-PIC | D24: PSICOLOGO -PIC | E24: 01 de abril de 2022 | F24: 30 de junio de 2022 | G24: 7500000 | H24: 2022-06-07 | I24: 1 | J24: 7500000 | K24: 0 | L24: 0 | M24: Detalle del proceso: 1676-2022- (contratos.gov.co)
A25: 1043014286 | B25: MARIA LUCIA BARRAZA NARVAEZ | C25: 0074-2022-PIC | D25: PSICOLOGO -VIH | E25: 01 de abril de 2022 | F25: 30 de junio de 2022 | G25: 7500000 | H25: 2022-06-07 | I25: 1 | J25: 7500000 | K25: 0 | L25: 0 | M25: Detalle del proceso: 1677-2022- (contratos.gov.co)
A26: 1048205472 | B26: MARIA MERCEDES FERNANDEZ VENTURA | C26: 0075-2022-PIC | D26: TRABAJADORA SOCIAL -PIC | E26: 01 de abril de 2022 | F26: 30 de junio de 2022 | G26: 7500000 | H26: 2022-06-07 | I26: 1 | J26: 7500000 | K26: 0 | L26: 0 | M26: Detalle del proceso: 1678-2022- (contratos.gov.co)
A27: 72304633 | B27: SAMUEL URUETA HURTADO | C27: 0076-2022-PIC | D27: INGENIERO AMBIENTAL | E27: 01 de abril de 2022 | F27: 30 de junio de 2022 | G27: 7500000 | H27: 2022-06-07 | I27: 1 | J27: 7500000 | K27: 0 | L27: 0 | M27: Detalle del proceso: 1679-2022- (contratos.gov.co)
A28: 1140814733 | B28: KATHERINE PATRICIA URUETA VERGARA | C28: 0077-2022-PIC | D28: LIDER APS | E28: 01 de abril de 2022 | F28: 30 de junio de 2022 | G28: 7500000 | H28: 2022-06-07 | I28: 1 | J28: 7500000 | K28: 0 | L28: 0 | M28: Detalle del proceso: 1680-2022- (contratos.gov.co)
A29: 22645320 | B29: ADRIANA CRISTINA GARCIA CARRILLO | C29: 0078-2022-PIC | D29: FISIOTERAPEUTA | E29: 01 de abril de 2022 | F29: 30 de junio de 2022 | G29: 7500000 | H29: 2022-06-07 | I29: 1 | J29: 7500000 | K29: 0 | L29: 0 | M29: Detalle del proceso: 1681-2022- (contratos.gov.co)
A30: 22699179 | B30: KELLY YOHANA CAMACHO POLO | C30: 0079-2022-PIC | D30: ENFERMERA JEFE -PAI | E30: 01 de abril de 2022 | F30: 30 de junio de 2022 | G30: 7500000 | H30: 2022-06-07 | I30: 1 | J30: 7500000 | K30: 0 | L30: 0 | M30: Detalle del proceso: 1682-2022- (contratos.gov.co)
A31: 72429089 | B31: EDER DE JESUS SEGURA BRAVO | C31: 0080-2022-PIC | D31: HIGIENISTA ORAL | E31: 01 de abril de 2022 | F31: 30 de junio de 2022 | G31: 5700000 | H31: 2022-06-07 | I31: 1 | J31: 5700000 | K31: 0 | L31: 0 | M31: Detalle del proceso: 1683-2022- (contratos.gov.co)
A32: 72305448 | B32: JAIDER JOSE MALAGON SALAS | C32: 0081-2022-PIC | D32: AUXILIAR DE ENFERMERIA | E32: 01 de abril de 2022 | F32: 30 de Abril de 2022 | G32: 1900000 | H32: 2022-06-07 | I32: 1 | J32: 1900000 | K32: 0 | L32: 0 | M32: Detalle del proceso: 1684-2022- (contratos.gov.co)
A33: 1002162856 | B33: NICOLL PATRICIA NIEBLES RIVERA | C33: 0082-2022-PIC | D33: AGENTE PRIMARIA EN SALUD-APS VIH | E33: 01 de abril de 2022 | F33: 30 de junio de 2022 | G33: 4200000 | H33: 2022-06-07 | I33: 1 | J33: 4200000 | K33: 0 | L33: 0 | M33: Detalle del proceso: 1685-2022- (contratos.gov.co)
A34: 32876278 | B34: CLAUDIA MARTINEZ RIVAS | C34: 0083-2022-PIC | D34: AGENTE PRIMARIA EN SALUD-APS VIH | E34: 01 de abril de 2022 | F34: 30 de junio de 2022 | G34: 4200000 | H34: 2022-06-07 | I34: 1 | J34: 4200000 | K34: 0 | L34: 0 | M34: Detalle del proceso: 1686-2022- (contratos.gov.co)
A35: 22746691 | B35: FANNY LLANOS ZAPATA | C35: 0084-2022-PIC | D35: AUXILIAR ADMINISTRATIVO-PIC | E35: 01 de abril de 2022 | F35: 30 de junio de 2022 | G35: 4800000 | H35: 2022-06-07 | I35: 1 | J35: 4800000 | K35: 0 | L35: 0 | M35: Detalle del proceso: 1687-2022- (contratos.gov.co)
A36: 32697649 | B36: CELEDENIA DEL CARMEN DE MOYA GARCIA | C36: 0085-2022-PIC | D36: AUXILIAR DE ENFERMERIA - VACUNADOR(A) | E36: 01 de abril de 2022 | F36: 30 de junio de 2022 | G36: 4500000 | H36: 2022-06-07 | I36: 1 | J36: 4500000 | K36: 0 | L36: 0 | M36: Detalle del proceso: 1689-2022- (contratos.gov.co)
A37: 32895539 | B37: NURYS CABRERA GARCIA | C37: 0086-2022-PIC | D37: AUXILIAR DE ENFERMERIA - VACUNADOR(A) | E37: 01 de abril de 2022 | F37: 15 de Abril de 2022 | G37: 750000 | H37: 2022-06-07 | I37: 1 | J37: 750000 | K37: 0 | L37: 0 | M37: Detalle del proceso: 1690-2022- (contratos.gov.co)
A38: 22569688 | B38: PABLA BEATRIZ OROZCO OSPINO | C38: 0087-2022-PIC | D38: AUXILIAR DE ENFERMERIA - VACUNADOR(A) | E38: 01 de abril de 2022 | F38: 30 de junio de 2022 | G38: 4500000 | H38: 2022-06-07 | I38: 1 | J38: 4500000 | K38: 0 | L38: 0 | M38: Detalle del proceso: 1691-2022- (contratos.gov.co)
A39: 1234891530 | B39: LAURA ANDREA BARRIOS MELGAREJO | C39: 0088-2022-PIC | D39: AUXILIAR DE ENFERMERIA - VACUNADOR(A) | E39: 01 de abril de 2022 | F39: 30 de junio de 2022 | G39: 4500000 | H39: 2022-06-07 | I39: 1 | J39: 4500000 | K39: 0 | L39: 0 | M39: Detalle del proceso: 1692-2022- (contratos.gov.co)
A40: 22637184 | B40: EVERLIDES OLMOS FIGUEROA | C40: 0089-2022-PIC | D40: AUXILIAR DE ENFERMERIA - VACUNADOR(A) | E40: 01 de abril de 2022 | F40: 30 de junio de 2022 | G40: 4500000 | H40: 2022-06-07 | I40: 1 | J40: 4500000 | K40: 0 | L40: 0 | M40: Detalle del proceso: 1693-2022- (contratos.gov.co)
A41: 1001779988 | B41: GISELLE FERNANDA HERNANDEZ PEREZ | C41: 0090-2022-PIC | D41: AUXILIAR DE ENFERMERIA - VACUNADOR(A) | E41: 01 de abril de 2022 | F41: 30 de junio de 2022 | G41: 4500000 | H41: 2022-06-07 | I41: 1 | J41: 4500000 | K41: 0 | L41: 0 | M41: Detalle del proceso: 1694-2022- (contratos.gov.co)
A42: 30895455 | B42: MARIA CONCEPCION ESPRIELLA BUELVAS | C42: 0091-2022-PIC | D42: ANOTADORA EN VACUNACION | E42: 01 de abril de 2022 | F42: 30 de junio de 2022 | G42: 4200000 | H42: 2022-06-07 | I42: 1 | J42: 4200000 | K42: 0 | L42: 0 | M42: Detalle del proceso: 1695-2022- (contratos.gov.co)
A43: 8642739 | B43: WALDY AHUMADA NAVARRO | C43: 0092-2022-PIC | D43: ODONTOLOGO | E43: 01 de abril de 2022 | F43: 30 de junio de 2022 | G43: 7500000 | H43: 2022-06-07 | I43: 1 | J43: 7500000 | K43: 0 | L43: 0 | M43: Detalle del proceso: 1696-2022- (contratos.gov.co)
A44: 22746372 | B44: ERIKA PATRICIA ZAPATA BLANCO | C44: 0093-2022-PIC | D44: DIGITADOR -ZOONOSS | E44: 01 de abril de 2022 | F44: 30 de junio de 2022 | G44: 5700000 | H44: 2022-06-07 | I44: 1 | J44: 5700000 | K44: 0 | L44: 0 | M44: Detalle del proceso: 1697-2022- (contratos.gov.co)
